{"text_format":"1","workbook":"xlsx","n_sheets":11,"sheets":["Strona tytułowa","Informace ogólne","audyt Ex-ante","Załączniki","emisja CO2 - załącznik 9","emisja PM10 - załącznik 9","audyt-Ex-post","Weryfikacja (2)","Weryfikacja","Protokół-opinia pozytywna","Protokół-uwagi"],"not_rendered":{"charts":0,"images":5,"macros":1,"external_links":0,"defined_names":11,"comments":1,"pivot_tables":0},"unopened":[],"bounds":{"document_bytes":16777216,"sheet_cells":100000,"rows_first":2000,"rows_last":500,"rows_between":2000,"halvings":0,"cell_chars":16384,"cell_head_chars":4096},"cells_cut":0,"cells_raw":0,"read":"whole","date_system":"1900"}

{"sheet":"Strona tytułowa","index":0,"n_rows":43,"n_cols":4,"rows_kept":43,"cut":false,"hidden":false,"merged":[[42,3,43,6],[44,3,44,6],[15,0,17,9],[20,1,20,8],[21,1,21,8],[36,3,36,6],[38,3,38,6],[39,3,39,6]]}
[]
[]
[]
[]
[]
[]
[]
[]
[]
[]
[]
[]
[]
[]
[]
["AUDYT ENERGETYCZNY ZBIORCZY"]
[]
[]
[]
[]
[]
[null,"(adres inwestycji)"]
[]
[]
[]
[]
[]
[]
[]
[]
[]
[]
[]
[]
[]
[]
[null,null,null,"SPORZĄDZIŁ:"]
[]
[]
[]
[]
[]
[null,null,null,"DATA WYKONANIA"]

{"sheet":"Informace ogólne","index":1,"n_rows":20,"n_cols":2,"rows_kept":20,"cut":false,"hidden":false,"merged":[[7,1,7,4],[2,1,2,4],[3,1,3,4],[4,1,4,4],[10,1,10,4],[8,1,8,4],[9,1,9,4],[19,1,19,4],[17,1,17,4],[18,1,18,4],[11,1,11,4],[12,1,12,4],[13,1,13,4],[14,1,14,4],[15,1,15,4],[16,1,16,4]]}
[]
["1.","Audyt energetyczny składa się z następujących części:"]
[null,"• Część I - termomodernizacja budynku lub źródła ciepła (część obligatoryjna) wykonana zgodnie z wymogami rozporządzenia w sprawie szczegółowego zakresu i formy audytu energetycznego oraz części audytu remontowego, wzorów kart audytów, a także algorytmu oceny opłacalności przedsięwzięcia termomodernizacyjnego.\n"]
[null,"• Część II - oszczędności w zużyciu energii elektrycznej - wymiana oświetlenia, urządzeń pomocniczych instalacji c.o., c.w.u., wentylacji mechanicznej i/lub systemu chłodzenia (część opcjonalna), wykonana w oparciu o obowiązujące rozporządzenie w sprawie metodologii wyznaczania charakterystyki energetycznej budynku lub części budynku oraz świadectw charakterystyki energetycznej budynków. Dopuszcza się opracowanie tej części na podstawie audytu efektywności energetycznej sporządzonego wg obowiązującego rozporządzenia w sprawie szczegółowego zakresu i sposobu sporządzania audytu efektywności energetycznej, wzoru karty audytu efektywności energetycznej oraz metod obliczania oszczędności energii. "]
[null,"• Część III - zastosowanie odnawialnych źródeł energii i wysokosprawnej kogeneracji - montaż instalacji PV, instalacji kolektorów słonecznych, pompy ciepła, zastosowanie wysokosprawnej kogeneracji i/lub innych OZE (część opcjonalna). Opracowanie należy wykonać sporządzić z wykorzystaniem wartości współczynnika nakładu nieodnawialnej energii pierwotnej wi na wytworzenie i dostarczenie nośnika energii lub energii dla systemów technicznych wg obowiązującego rozporządzenia w sprawie metodologii wyznaczania charakterystyki energetycznej budynku lub części budynku oraz świadectw charakterystyki energetycznej budynków."]
[]
["2.","Normy i rozporządzenia"]
["2.1","Rozporządzenie Ministra Infrastruktury i Rozwoju z dnia 3 września 2015 r. zmieniające rozporządzenie w sprawie szczegółowego zakresu i form audytu energetycznego oraz części audytu remontowego, wzorów kart audytów, a także algorytmu oceny opłacalności przedsięwzięcia termomodernizacyjnego (Dz. U. 2015 poz. 1606)"]
["2.2","Rozporządzenie Ministra Infrastruktury i Rozwoju z dnia 27 lutego 2015 r. w sprawie metodologii wyznaczania charakterystyki energetycznej budynku lub części budynku oraz świadectw charakterystyki energetycznej (Dz.U. 2015 poz. 376)"]
["2.3","Rozporządzenie Ministra Energii z dnia 5 października 2017 r. w sprawie szczegółowego zakresu i sposobu sporządzania audytu efektywności energetycznej oraz metod obliczania oszczędności energii (Dz.U. 2017 poz. 1912)"]
["2.4","Obwieszczenie Ministra Infrastruktury i Rozwoju z dnia 17 lipca 2015 r. w sprawie ogłoszenia jednolitego tekstu rozporządzenia Ministra Infrastruktury w sprawie warunków technicznych, jakim powinny odpowiadać budynki i ich usytuowanie. (Dz.U. 2015 poz. 1422)"]
["2.5","Dyrektywa Parlamentu Europejskiego i Rady 2009/125/WE z dnia 21 pażdzienika 2009 r. ustanawiająca ogólne zasady ustalania wymogów dotyczacych ekoprojektu dla produktów związanych z energią."]
["2.6","PN-EN ISO 6946 – Opór cieplny i współczynnik przenikania ciepła. Metoda obliczania."]
["2.7","PN-EN-12831 –   Instalacje ogrzewcze w budynkach - Metoda obliczania projektowego obciążenia cieplnego  "]
["2.8","PN-83/B-03430 – Wentylacja w budynkach mieszkalnych zamieszkania zbiorowego i użyteczności publicznej. Wymagania."]
["2.9","PN-82/B-02402 – Temperatury ogrzewanych pomieszczeń w budynkach."]
["2.10","PN-82/B-02403 – Temperatury obliczeniowe zewnętrzne."]
["2.11","PN-EN ISO 13789:2008 – Cieplne właściwości użytkowe budynków -- Współczynniki wymiany ciepła przez przenikanie i wentylację -- Metoda obliczania "]
["2.12","PN-EN ISO 13790:2009 –  Energetyczne właściwości użytkowe budynków - Obliczanie zużycia energii na potrzeby ogrzewania i chłodzenia"]
["2.13","Obowiązujące normy i rozporządzenia dotyczące oświetlenia i energii elektrycznej"]

{"sheet":"audyt Ex-ante","index":2,"n_rows":172,"n_cols":6,"rows_kept":172,"cut":false,"hidden":false,"merged":[[124,5,172,13],[1,5,32,7],[34,5,72,10],[73,5,97,10],[98,5,122,21],[172,3,172,4],[171,0,171,1],[172,0,172,1],[71,3,71,4],[78,3,78,4],[82,3,82,4],[84,3,84,4],[96,3,96,4],[171,3,171,4],[165,1,165,2],[167,1,167,3],[160,1,160,2],[154,3,154,4],[150,3,150,4],[166,1,166,2],[122,3,122,4],[117,0,118,0],[117,3,117,4],[148,0,148,4],[141,3,141,4],[119,0,121,0],[99,0,99,4],[100,3,100,4],[101,3,101,4],[0,0,0,4],[144,3,144,4],[164,3,164,4],[161,1,161,2],[162,1,162,2],[163,1,163,2],[164,1,164,2],[19,0,19,4],[146,3,146,4],[60,0,60,4],[1,0,1,4],[2,3,2,4],[3,3,3,4],[6,3,6,4],[8,3,8,4],[4,3,4,4],[5,3,5,4],[7,3,7,4],[12,3,12,4],[10,3,10,4],[11,3,11,4],[20,2,20,4],[14,2,14,4],[9,3,9,4],[18,2,18,4],[13,0,13,4],[21,2,21,4],[15,2,15,4],[16,2,16,4],[17,2,17,4],[35,0,35,1],[34,3,34,4],[33,0,33,4],[22,2,22,4],[23,2,23,4],[24,2,24,4],[25,0,25,1],[139,3,139,4],[115,0,116,0],[128,0,130,0],[131,0,133,0],[134,0,136,0],[125,0,127,0],[106,3,106,4],[111,3,111,4],[129,3,129,4],[130,3,130,4],[135,3,135,4],[113,3,113,4],[136,3,136,4],[138,3,138,4],[55,2,55,4],[41,0,41,1],[76,3,76,4],[157,1,157,2],[158,1,158,2],[159,1,159,2],[156,1,156,2],[151,3,151,4],[152,3,152,4],[153,3,153,4],[155,0,155,4],[143,3,143,4],[147,3,147,4],[68,3,68,4],[94,3,94,4],[69,1,70,1],[49,2,49,4],[41,2,41,4],[49,0,49,1],[55,0,55,1],[73,0,73,4],[74,0,74,4],[92,0,92,4],[98,0,98,4],[116,3,116,4],[124,0,124,1],[114,0,114,4],[86,0,86,4],[123,0,123,4],[69,0,70,0],[121,3,121,4],[118,3,118,4],[120,3,120,4],[110,0,110,4],[102,3,102,4],[103,3,103,4],[105,0,105,4],[108,3,108,4],[109,3,109,4],[104,3,104,4],[115,3,115,4],[107,3,107,4],[112,3,112,4],[80,0,80,4]]}
["AUDYT ENERGETYCZY ZBIORCZY BUDYNKU"]
["I-Dane ogólne",null,null,null,null,"Dane ogólne:\n1. Audyt energetyczny zbiorczy budynku wypełnia się w oparciu o sporządzony audyt energetyczny budynku bądź źródła ciepła oraz (jeśli dotyczy) analizy oszczędności energii elektrycznej w budynku i/lub analizy zastosowania odnawialnych źródeł energii;\n2. W części Dane ogólne dla budynków wielorodzinnych należy podać wskaźnik „Liczba gospodarstw domowych z lepszą klasą zużycia energii\" rozumianą jako liczbę lokali mieszkalnych w budynku. W przypadku termomodernizacji budynków innych niż mieszkalne wskaźnik ten wynosi „0\";\n3. W części Opis instalacji przed modernizacją należy podać krótki opis charakteryzujący stan istniejący systemów c.o., c.w.u., wentylacji, chłodzenia oraz oświetlenia, mający bezpośrednie przełożenie na przyjęte sprawności poszczególnych składowych systemów;\n4. W części Opis instalacji po modernizacji należy podać krótki opis charakteryzujący stan docelowy systemów c.o., c.w.u., wentylacji, chłodzenia oraz oświetlenia, mający bezpośrednie przełożenie na przyjęte sprawności poszczególnych składowych systemów;\n"]
["1.","Właściciel/ władający budynkiem","-"]
["2.","Przeznaczenie budynku ","-"]
["3.","Adres budynku","-"]
["4.","Rok zakończenia budowy/rok oddania do użytkowania","-"]
["5.","Liczba zmodernizowanych energetycznie budynków ","szt."]
["6.","Liczba gospodarstw domowych z lepszą klasą zużycia energii","szt."]
["7.","Kubatura części ogrzewanej      ","m3"]
["8.","Powierzchnia o regulowanej temperaturze budynku","m2"]
["9.","Powierzchnia o regulowanej temperaturze części mieszkalnej   ","m2"]
["10.","Powierzchnia o regulowanej temperaturze lokali użytkowych oraz innych pomieszczeń niemieszkalnych (łącznie z klatkami schodowymi)    ","m2"]
["11.","Liczba osób użytkujących budynek","os."]
["1. Opis instalacji przed modernizacją"]
["1.","Instalacja c.o. i źródło ciepła zasilające instalację c.o."]
["2.","Instalacja przygotowania ciepłej wody i źródło ciepła zasilające instalację c.w.u."]
["3.","Instalacja wentylacji"]
["4.","Instalacja chłodzenia i źródła chłodu"]
["5.","Instalacja oświetlenia wbudowanego"]
["2. Opis instalacji po modernizacji"]
["1.","Instalacja c.o. i źródło ciepła zasilające instalację c.o."]
["2.","Instalacja przygotowania ciepłej wody i źródło ciepła zasilające instalację c.w.u."]
["3.","Instalacja wentylacji"]
["4.","Instalacja chłodzenia i źródła chłodu"]
["5.","Instalacja oświetlenia wbudowanego"]
["3. Opłaty jednostkowe obowiązujące w dniu sporządzenia audytu",null,null,"Stan przed modernizacją","Stan po modernizacji"]
["1.","Koszt za 1GJ ciepła do ogrzewania budynku                                          ","zł/GJ"]
["2.","Koszt 1 MW mocy zamówionej na ogrzewanie na miesiąc         ","zł/(MW m-c)"]
["3.","Miesięczna opłata abonamentowa na ogrzewanie                                                ","zł/m-c"]
["4.","Koszt za 1GJ ciepła na przygotowanie ciepłej wody użytkowej              ","zł/GJ"]
["5.","Koszt 1 MW mocy zamówionej na przygotowanie ciepłej wody użytkowej na miesiąc  ","zł/(MW m-c)"]
["6.","Miesięczna opłata abonamentowa (lub nie dotyczy jeśli zawarte w opłacie za ciepło do celów c.o.)                                                           ","zł/m-c"]
["7.","Koszt za 1kWh energii elektrycznej             ","zł/kWh"]
["II-Część I. Termomodernizacja i źródło ciepła"]
["1.","W audycie obliczono parametry energetyczne w taki sposób, aby po zrealizowaniu przedsięwzięcia termomodernizacyjnego budynek spełniał warunki określne w § 328, ust. 1a Rozporządzenia Ministra Infrastruktury w sprawie warunków, jakim powinny odpowiadać budynki i ich usytuowanie, tzn., aby spełniał wymagania minimalne dla budynków poddanych przebudowie  "," -","2017/2021*\n*(niepotrzebne skreślić )",null,"Część I - termomodernizacja budynku lub źródła ciepła\"\n1. Realizacja projektu związanego z modernizacją źródła ciepła w tym z zastosowaniem kogeneracji może być rozpatrywana jedynie jako element projektu kompleksowej modernizacji obiektu;\n2. Przegrody poddane termomodernizacji muszą spełniać na dzień uzyskania pozwolenia na budowę/zgłoszenia minimalne wymagania dotyczące izolacyjności cieplnej określone w rozporządzeniu w sprawie warunków technicznych jakim powinny odpowiadać budynki i ich usytuowanie (Dz. U. 2015 poz. 1422) odpowiednio warunki techniczne na rok 2017 (WT 2017) bądź na rok 2021 (WT 2021) lub na 1 stycznia 2019 r. - w przypadku budynków zajmowanych przez władze publiczne oraz będących ich własnością;\n3. W części Współczynniki przenikania ciepła przegród należy wymienić wszystkie przegrody budowlane biorące udział w stratach ciepła, w tym stolarkę okienną i drzwiową oraz podać współczynniki przenikania ciepła dla stanu przed i po modernizacji;\n4. W części Sprawności składowych systemów ogrzewania, ciepłej wody użytkowej wartości należy podać w oparciu o rozporządzenie w sprawie metodologii wyznaczania charakterystyki energetycznej budynku lub części budynku oraz świadectw charakterystyki energetycznej (obecnie Dz. U. 2015 poz. 376);\n5. Dane dotyczące Charakterystyki energetycznej budynku należy wypełnić w oparciu o audyt energetyczny budynku stanowiący załącznik 1. Audyt energetyczny budynku musi zawierać elementy zgodne z wytycznymi rozporządzenia w sprawie szczegółowego zakresu i form audytu energetycznego oraz części audytu remontowego, wzorów kart audytów, a także algorytmu oceny opłacalności przedsięwzięcia termomodernizacyjnego (obecnie Dz.U. 2015 poz. 1606) w tym wydruki z raportu/wyniki z obliczeń cieplnych budynku dla stanu istniejącego i po modernizacji;\n6. Należy podać zmierzone zużycie ciepła na ogrzewanie i przygotowanie ciepłej wody użytkowej przeliczone na standardowy sezon grzewczy. W przypadku braku danych należy zamieścić stosowne wyjaśnienie. Szczegółowych wyjaśnień wymaga również sytuacja, w której zmierzone zużycie ciepła na c.o. i c.w.u. różni się od obliczeniowego o powyżej 20%.\n7. W przypadku, gdy w projekcie przewidziano instalację indywidualnych piecy należy wykazać, że:\na. przyłączenie do sieci ciepłowniczej jest nieuzasadnione ekonomicznie (lub nie istnieje technicznie taka możliwość);\nb. zostanie osiągnięty znacznie większy efekt energetyczny;\nc. nastąpiło zmniejszenie emisji CO2 o min. 30% w odniesieniu do istniejących instalacji w przypadku zmiany spalanego paliwa;\nd. zaplanowane do montażu urządzenia do ogrzewania charakteryzują się obowiązującym do końca 2020 r. minimalnym poziomem efektywności energetycznej i normami emisji (zgodnie z dyrektywą 2009/125/WE z dnia 21 października 2009 r. ustanawiającej ogólne zasady ustalania wymogów dotyczących ekoprojektu dla produktów związanych z energią).\n"]
["1. Współczynniki przenikania ciepła przegród                                                          ",null,null,"Stan przed modernizacją","Stan po modernizacji"]
["1.",null,"W/(m2K)"]
["2.",null,"W/(m2K)"]
["3.",null,"W/(m2K)"]
["4.",null,"W/(m2K)"]
["5.",null,"W/(m2K)"]
["2. Sprawności składowych systemu ogrzewania"]
["1.","Sprawność wytwarzania"," -"]
["2.","Sprawność przesyłania "," -"]
["3.","Sprawność regulacji i wykorzystania"," -"]
["4.","Sprawność akumulacji"," -"]
["5.","Ogólna sprawność systemu dystrybucji ciepła"," -"]
["6.","Uwzględnienie przerw na ogrzewanie w okresie tygodnia"," -"]
["7.","Uwzględnienie przerw na ogrzewanie w ciągu doby"," -"]
[" 3. Sprawności składowych systemu przygotowania ciepłej wody użytkowej"]
["1.","Sprawność wytwarzania                                                                           "," -"]
["2.","Sprawność przesyłu                                                                                    "," -"]
["3.","Sprawność akumulacji                                                                                  "," -"]
["4.","Sprawność wykorzystania                                                            "," -"]
["5.","Sprawność całkowita systemu przygotowania c.w.u.    "," -"]
["4. Charakterystyka systemu wentylacji"]
["1.","Rodzaj wentylacji (naturalna, mechaniczna)"," -"]
["2.","Liczba wymian                                                                                           ","1/h"]
["3.","Sprawność rekuperacji (odzysk ciepła)","%"]
["4.","Sprawność wymiennika gruntowego","%"]
["5. Charakterystyka energetyczna i ekonomiczna związana z ogrzewaniem, wentylacją i przygotowaniem c.w.u."]
["1.","Obliczeniowa moc cieplna systemu ogrzewania                                         ","kW"]
["2.","Obliczeniowa moc cieplna na przygotowanie cwu Qśr lub Qmax                ","kW"]
["3.","Roczne zapotrzebowanie na energię końcową do ogrzewania i wentylacji                    ","GJ/rok"]
["4.","Roczne zapotrzebowanie na energię końcową do przygotowania c.w.u.                 ","GJ/rok"]
["5.","Zmierzone zużycie ciepła na ogrzewanie przeliczone na warunki sezonu standardowego (służące do weryfikacji przyjętych składowych danych obliczeniowych bilansu ciepła)                                                                  ","GJ/rok"]
["6.","Zmierzone zużycie ciepła na przygotowanie ciepłej wody (służące do weryfikacji przyjętych składowych danych obliczeniowych bilansu ciepła)    ","GJ/rok"]
["7.","Roczne sumaryczne zapotrzebowanie na energię końcową do ogrzewania, wentylacji i przygotowania c.w.u. ","GJ/rok"]
["8.","Procent oszczędności energii końcowej do ogrzewania, wentylacji i przygotowania c.w.u. ","%"]
["9.","Roczne sumaryczne zapotrzebowanie na energię pierwotną do ogrzewania, wentylacji i przygotowania c.w.u. (bez urządzeń pomocniczych)","GJ/rok"]
[null,null,"MWh/rok"]
["10.","Koszty inwestycyjne","zł"]
["11.","Roczne koszty ogrzewania, wentylacji i przygotowania c.w.u","zł/rok"]
["III-Część II. Oszczędności w zużyciu energii elektrycznej",null,null,null,null,"Część II - oszczędności w zużyciu energii elektrycznej\"\n1. W zakresie modernizacji oświetlenia (jeśli dotyczy) dane należy podać w oparciu o analizę oszczędności energii elektrycznej na cele oświetleniowe stanowiącą załącznik 2. Załącznik powinien stanowić wydruk z raportu z przeprowadzonych obliczeń, zawierający co najmniej następujące dane opisujące stan istniejący oraz po modernizacji: ilość punktów świetlnych, moce zainstalowane, czas pracy, zużycie energii końcowej, procent oszczędności energii końcowej, zapotrzebowanie na energię pierwotną, koszty eksploatacyjne, planowane koszty inwestycyjne;\n2. W zakresie modernizacji urządzeń pomocniczych do systemów c.o., c.w.u, wentylacji, chłodzenia (jeśli dotyczy) dane należy podać w oparciu o analizę oszczędności energii elektrycznej na poszczególne cele stanowiącą załącznik 3. Załącznik powinien stanowić wydruk z raportu z przeprowadzonych obliczeń, zawierający co najmniej następujące dane opisujące stan istniejący oraz po modernizacji: ilość urządzeń, moce zainstalowane, czas pracy, zużycie energii końcowej, procent oszczędności energii końcowej, zapotrzebowanie na energię pierwotną, koszty eksploatacyjne, planowane koszty inwestycyjne;\n3. W zakresie modernizacji systemu chłodzenia (jeśli dotyczy) dane należy podać w oparciu o analizę oszczędności energii na potrzeby chłodu stanowiącą załącznik 4. Załącznik powinien stanowić wydruk z raportu z przeprowadzonych obliczeń, zawierający co najmniej następujące dane opisujące stan istniejący oraz po modernizacji: opis instalacji bądź lokalnych układów klimatyzatorów warunkujących przyjęcie poszczególnych sprawności systemu, zużycie energii końcowej, procent oszczędności energii końcowej, zapotrzebowanie na energię pierwotną, koszty eksploatacyjne, planowane koszty inwestycyjne, ESEER źródła chłodu, działania ograniczające zyski ciepła;\n"]
["1. Oświetlenie"]
["1.","Roczne  zapotrzebowanie na energię końcową do oświetlenia   ","MWh/rok"]
["2.","Procent oszczędności energii końcowej do oświetlenia","%"]
["3.","Roczne  zapotrzebowanie na energię pierwotną do  oświetlenia   ","MWh/rok"]
["4.","Koszty inwestycyjne","zł"]
["5.","Roczne koszty oświetlania","zł/rok"]
["2. Energia pomocnicza "]
["1.","Roczne  zapotrzebowanie  na  energię końcową dla urządzeń pomocniczych","MWh/rok"]
["2.","Procent oszczędności energii końcowej dla urządzeń pomocniczych","%"]
["3.","Roczne  zapotrzebowanie na energię pierwotną dla urządzeń pomocniczych","MWh/rok"]
["4.","Koszty inwestycyjne","zł"]
["5.","Roczne koszty pracy urządzeń pomocniczych","zł/rok"]
["3. Instalacja chłodzenia - Sprawności składowe systemu  chłodzenie"]
["1.","Sprawność wytwarzania"," -"]
["2.","Sprawność przesyłania "," -"]
["3.","Sprawność regulacji i wykorzystania"," -"]
["4.","Sprawność akumulacji"," -"]
["5.","Ogólna sprawność systemu dystrybucji chłodu "," -"]
["4. Charakterystyka energetyczna i ekonomiczna chłodu"]
["1.","Roczne  zapotrzebowanie  na  energię końcową  do chłodzenia  ","MWh/rok"]
["2.","Procent oszczędności energii końcowej do chłodzenia","%"]
["3.","Roczne  zapotrzebowanie  na  energię pierwotną do chłodzenia  ","MWh/rok"]
["4.","Koszty inwestycyjne","zł"]
["5.","Roczne koszty chłodzenia pomieszczeń","zł/rok"]
["IV-Część III. Zastosowanie odnawialnych źródeł energii i wysokosprawnej kogeneracji",null,null,null,null,"Część III - zastosowanie odnawialnych źródeł energii i wysokosprawnej kogeneracji\nW zakresie montażu instalacji PV (jeśli dotyczy) audyt zbiorczy budynku należy wypełnić w oparciu o analizę stanowiącą załącznik 5 lub załącznik 2 jeśli działanie zostało ujęte przy modernizacji oświetlenia. Załącznik powinien stanowić wydruk z raportu z przeprowadzonych obliczeń, zawierający co najmniej następujące dane: powierzchnię całkowitą PV, moc szczytową, opis urządzeń do magazynowania energii (jeśli dotyczy), przewidywaną roczną produkcję energii elektrycznej [MWh/rok], uzysk przypadający na lkWp zainstalowanej instalacji [kWh/kWp], procent oszczędności energii końcowej, planowane koszty inwestycyjne;\n3. W zakresie montażu instalacji kolektorów słonecznych (jeśli dotyczy) audyt zbiorczy budynku należy wypełnić w oparciu o analizę stanowiącą załącznik 6 lub załącznik 1 jeśli działanie zostało ujęte przy modernizacji ciepłej wody użytkowej. Załącznik powinien stanowić wydruk z raportu z przeprowadzonych obliczeń, zawierający co najmniej następujące dane: liczbę zamontowanych kolektorów, powierzchnię czynną zamontowanej instalacji, przewidywaną roczną produkcję ciepła [GJ/rok], uzysk przypadający na 1 m2 zainstalowanej instalacji [GJ/m2rok], procent oszczędności energii planowane koszty inwestycyjne;\n4. W zakresie montażu pomp ciepła (jeśli dotyczy) audyt zbiorczy budynku należy wypełnić w oparciu o analizę stanowiącą załącznik 7 lub załącznik 1 jeśli działanie zostało ujęte przy modernizacji źródła ciepła. Załącznik powinien przedstawiać obliczenia oraz co najmniej następujące dane: rodzaj pomy ciepła, sezonowy wskaźnik efektywności (wydajności) energetycznej (SPF/SPER) planowanej pompy ciepła, przewidywaną roczną produkcję ciepła [MWh/rok] (zgodnie z załączonymi do audytu energetycznego obliczeniami);\n5. W zakresie montażu instalacji urządzeń i instalacji wysokosprawnej kogeneracji lub innego OZE (jeśli dotyczy) audyt zbiorczy budynku należy wypełnić w oparciu o analizę stanowiącą załącznik 8 lub załącznik 1 jeśli działanie zostało ujęte przy modernizacji źródła ciepła. Załącznik powinien przedstawiać obliczenia oraz co najmniej następujące dane: sprawność ogólną, sprawność wytwarzania energii elektrycznej i ciepła, zainstalowaną moc elektryczną i cieplną, rodzaj paliwa; należy podać przewidywaną roczną produkcję energii elektrycznej [MWh/rok] i ciepła [GJ/rok], procent oszczędności energii końcowej, planowane koszty inwestycyjne.\n6. W przypadku, gdy w projekcie przewidziano instalację mikrokogeneracji spalających biomasę lub paliwa gazowe, należy wykazać że:\na. przyłączenie do sieci ciepłowniczej jest nieuzasadnione ekonomicznie (lub nie istnieje technicznie taka możliwość);\nb. zostanie osiągnięty znacznie większy efekt energetyczny;\nc. nastąpiło zmniejszenie emisji C02 o min. 30% w odniesieniu do istniejących instalacji w przypadku zmiany spalanego paliwa;\nd. zaplanowane do montażu urządzenia do ogrzewania charakteryzują się obowiązującym do końca 2020 r. minimalnym poziomem efektywności energetycznej i normami emisji (zgodnie z dyrektywą 2009/125/WE z dnia 21 października 2009r. ustanawiającej ogólne zasady ustalania wymogów dotyczących ekoprojektu dla produktów związanych z energią).\n7. W zakresie wysokosprawnej kogeneracji wsparte mogą zostać projekty zapewniające najniższy poziom emisji C02 oraz innych zanieczyszczeń powietrza (w szczególności PM10). Realizacja projektu związanego z modernizacją źródła ciepła i zastosowaniem kogeneracji może być realizowana jedynie jako element projektu kompleksowej modernizacji obiektu\n8. W przypadku nowych instalacji powinno zostać osiągnięte co najmniej 10% uzysku efektywności energetycznej w porównaniu do rozdzielonej produkcji energii cieplnej i elektrycznej przy zastosowaniu najlepszych dostępnych technologii.\n9. W przypadku realizacji projektów dot. wysokosprawnej kogeneracji dopuszczalna moc instalacji do 1 MWe.\n"]
["1. Instalacja PV"]
["1.","Powierzchnia paneli ","m2"]
["2.","Moc instalacji ","kWp"]
["3.","Koszty inwestycyjne","zł"]
["4.","Planowany uzysk z instalacji PV","MWh/rok"]
["5.","Planowany uzysk z 1kWp instalacji PV","kWh/kWp"]
["2.  Instalacja kolektorów słonecznych"]
["1.","Powierzchnia czynna zamontowanej instalacji kolektorów","m2"]
["2.","Koszty inwestycyjne","zł"]
["3.","Planowany uzysk z instalacji kolektorów","GJ/rok"]
["4.","Planowany uzysk z 1m2 powierzchni czynnej instalacji solarnej","GJ/(rok m2)"]
["3. Pompa ciepła"]
["1.","Rodzaj pompy ciepła"," -"]
["2.","Sprawność wytwarzania"," -"]
["3.","Uzysk OZE z pompy ciepła","GJ/rok"]
["4. Kogeneracja i inne OZE"]
["1.","Moc cieplna urządzenia","kW"]
[null,"Moc elektryczna urządzenia","kW"]
["2.","Sprawność cieplna urządzenia"," -"]
[null,"Sprawność elektryczna urządzenia"," -"]
["3.","Ilość wyprodukowanej energii z kogeneracji"]
[null," - ciepło","GJ/rok"]
[null," - energia elektryczna","MWh/rok"]
["4.","Koszty inwestycyjne","zł"]
["V-Podsumowanie"]
["1. Charakterystyka energetyczna optymalnego wariantu przedsięwzięcia",null,null,"Stan przed modernizacją","Stan po modernizacji","Łączna charakterystyka wskaźników przedsięwzięcia dla Części I, Części II oraz Części III przedsięwzięcia.\nEmisję CO2 należy obliczyć na podstawie wartości wskaźników emisji CO2 publikowanych przez Krajowy Ośrodek Bilansowania i Zarządzania Emisjami do raportowania w ramach Wspólnotowego Systemu Handlu Uprawnieniami do Emisji za dany rok, wyliczoną w załączniku 9.\n\n„Opis optymalnego wariantu przedsięwzięcia\"\nOpisu optymalnego wariantu przedsięwzięcia musi zawierać parametry techniczne, wymagane dla poszczególnych elementów przedsięwzięcia, jak również inne wymagania, wynikające ze specyfiki urządzeń. \n• W zakresie ocieplenia przegród budynku należy podać:\n- rodzaj ocieplanej przegrody (ściany, stropy, fundamenty, stropodachy, lub dachy), powierzchnię ocieplaną [m2], grubość materiału izolacyjnego, współczynnik przewodzenia ciepła A [W/m K] materiału izolacyjnego;\n• W zakresie modernizacji lub wymiany stolarki okiennej i drzwiowej lub wymiany oszkleń\nsystemowych w budynkach na efektywne energetycznie należy podać:\n- powierzchnię [m2], oddzielnie dla okien, drzwi, oszkleń systemowych;\n• W zakresie modernizacji instalacji ogrzewania należy podać:\n- zakres prac, podać w sztukach planowane do wymiany grzejniki i zawory termostatyczne, itp. Zakres zadania powinien uwzględniać proces równoważenia hydraulicznego (regulacji). W przypadku wymiany źródła ciepła należy podać moc i rodzaj nowego źródła (rodzaj paliwa);\n• W zakresie modernizacji instalacji przygotowania ciepłej wody użytkowej należy podać:\n- zakres prac w tym ilość zasobników, itp.;\n• W zakresie modernizacji systemu wentylacji:\n- poprawa systemu wentylacji mechanicznej - należy opisać zakres modernizacji, w przypadku zastosowania systemu odzysku/rekuperacji ciepła - dodatkowo sprawność rekuperatora,\n- zastąpienie systemu wentylacji naturalnej systemem wentylacji mechanicznej należy opisać zakres modernizacji;\n• W zakresie montażu kompleksowych systemów zarządzania wszystkimi rodzajami energii\nw budynku/-ach:\n- należy podać opis funkcji realizowanych w ramach systemu;\n• W zakresie wymiany oświetlenia wbudowanego na energooszczędne:\n- wymiana źródeł światła na energooszczędne (np. typu LED) - należy podać liczbę punktów świetlnych, moc [kW];\n• W zakresie wymiany urządzeń pomocniczych na energooszczędne (w tym wymiana\nukładów pompowych i pomp - stosowanie pomp o płynnej regulacji):\n- należy podać liczbę oraz rodzaj urządzenia pomocniczego i instalacji;\n• W zakresie modernizacji instalacji chłodzenia/klimatyzacji:\n- należy opisać zakres modernizacji, działania ograniczające zyski ciepła, współczynnik ESEER źródła ciepła;\n• W zakresie montażu układów (ogniw) fotowoltaicznych:\n- należy podać moc zainstalowaną, powierzchnię całkowitą;\n• W zakresie montażu kolektorów słonecznych:\n- powierzchnia czynna zamontowanych kolektorów;\n• W zakresie montażu urządzeń i instalacji do wysokosprawnej produkcji energii elektrycznej, ciepła (wysokosprawna kogeneracja) lub innego OZE:\n- zainstalowaną moc elektryczną i cieplną, rodzaj paliwa;\n"]
["1.","Roczne zapotrzebowanie na energię końcową budynku:"]
[null," - ciepło","GJ/rok"]
[null," - energia elektryczna","MWh/rok"]
["2.","Roczne oszczędności energii końcowej dla budynku"]
[null," - ciepło","GJ/rok"]
[null," - energia elektryczna","MWh/rok"]
["3.","Roczne  zapotrzebowanie na energię pierwotną budynku:"]
[null," - ciepło","GJ/rok"]
[null," - energia elektryczna","MWh/rok"]
["4.","Roczne oszczędności energii pierwotnej dla budynku"]
[null," - ciepło","GJ/rok"]
[null," - energia elektryczna","MWh/rok"]
["5.","Roczne łączne zapotrzebowanie  na  energię  końcową budynku","MWh/rok"]
["6.","Zmniejszenie zapotrzebowania na energię końcową w budynku","MWh/rok"]
["7.","Procent łącznej oszczędności energii końcowej budynku","%"]
["8.","Roczne łączne zapotrzebowanie  na  energię  pierwotną budynku","MWh/rok"]
["9.","Zmniejszenie zapotrzebowania na energię pierwotną w budynku","MWh/rok"]
["10.","Emisja gazów cieplarnianych (dwutlenku węgla)","MgCO2/rok"]
["11.","Szacowany roczny spadek emisji gazów cieplarnianych (dwutlenku węgla)","MgCO2/rok"]
["12.","Procent redukcji emisji gazów cieplarnianych (dwutlenku węgla)","%"]
["13.","Emisja pyłów PM10","kgPM10/rok"]
["14.","Szacowany roczny spadek emisji pyłów PM10","kgPM10/rok"]
["15.","Procent redukcji emisji pyłów PM10","%"]
["2. Charakterystyka ekonomiczna optymalnego wariantu przedsięwzięcia"]
["1.","Sumaryczne roczne koszty eksploatacyjne ","zł/rok"]
["2.","Oszczędność rocznych kosztów eksploatacyjnych","zł/rok"]
["3.","Sumaryczne koszty inwestycyjne z Części I, II oraz III","zł"]
["4.","Koszty audytu","zł"]
["5.","Sumaryczne koszty inwestycyjne (z kosztem opracowania audytu energetycznego zbiorczego budynku wraz z załącznikami)","zł"]
["6.","SPBT","lata"]
["3. Opis optymalnego wariantu przedsięwzięcia "]
["Lp.","Skrócony opis prac",null,"koszt jednostkowy  zł/m2 zł/ szt. lub zł","koszt robót brutto, zł"]
[null,"Część I"]
["1."]
["2."]
[".."]
[null,"Część II"]
[".."]
[".."]
[null,"Część III"]
[".."]
[".."]
[null,"Sumaryczne koszty inwestycyjne  "]
[]
[]
[]
["Sporządzający audyt zbiorczy budynku:",null,"Data:","Podpis:"]

{"sheet":"Załączniki","index":3,"n_rows":17,"n_cols":6,"rows_kept":17,"cut":false,"hidden":false,"merged":[[14,1,14,2],[15,1,15,2],[16,1,16,2]]}
[]
[null,"Lp","Rodzaj załącznika","Dotyczy1","Zawarte w załączniku2","Nie dotyczy¹"]
[null,"1.","Audyt energetyczny budynku 3","X"]
[null,"2.","Analiza oszczędności w zużyciu energii elektrycznej na cele oświetleniowe"]
[null,"3.","Analiza oszczędności w zużyciu energii elektrycznej dla urządzeń pomocniczych"]
[null,"4.","Analiza oszczędności w zużyciu energii elektrycznej dla instalacji chłodzenia"]
[null,"5.","Analiza zastosowania instalacji PV"]
[null,"6.","Analiza zastosowania instalacji kolektorów słonecznych"]
[null,"7.","Analiza zastosowania pompy ciepła"]
[null,"8.","Analiza zastosowania wysokosprawnej kogeneracji i innego OZE"]
[null,"9.","Wyliczenie efektu ekologicznego3","X"]
[null,"10.","Inwentaryzacja przedmiotu audytu³","X"]
[null,"11.","Inne (opisać jakie załacznikie)"]
[]
[null,"1)  Zaznaczyć „X\" w odpowiednim polu"]
[null,"2)  Zawarte w załączniku - podać nr załącznika, w którym znajdują się dane analizy (dotyczy łącznych analiz)"]
[null,"3)  Należy dostarczyć obligatoryjnie"]

{"sheet":"emisja CO2 - załącznik 9","index":4,"n_rows":26,"n_cols":9,"rows_kept":26,"cut":false,"hidden":false,"merged":[[25,0,25,7],[18,0,18,3],[19,0,19,6],[20,0,20,7],[21,0,21,7],[22,0,22,7],[23,0,23,7],[2,5,3,5],[2,6,3,6],[2,7,3,7],[1,8,20,15],[24,0,24,7],[1,0,3,0],[1,1,3,1],[1,2,3,2],[1,3,1,4],[1,5,1,7],[2,3,3,3],[2,4,3,4]]}
["Załącznik 9. Wyliczenie efektu ekologicznego (część I: redukcja emisji CO2)"]
["Nośnik energii","WSPÓŁCZYNNIKI NAKŁADU NIEODNAWIALNEJ ENERGII PIERWOTNEJ2","WSKAŹNIK EMISJI 3)4) kgCO2/GJ lub MgCO2/MWh","Rok bazowy - stan przed modernizacją (przed realizacją projektu)",null,"Obliczeniowy stan po modernizacji (po realizacji projektu)",null,null," Wytyczne do obliczania efektu ekologicznego - załącznik 9\nWyliczenie efektu ekologicznego (redukcja emisji CO2)\n1. W przypadku zużycia energii pochodzącej z zewnętrznego źródła ciepła (miejska sieć ciepłownicza itp. z wyłączeniem lokalnych kotłowni usytuowanych poza budynkiem/budynkami ogrzewanymi) należy zastosować współczynniki nakładu nieodnawialnej energii pierwotnej zgodnie z tabelą nr 1 Załącznika nr 1 do rozporządzenia Ministra Infrastruktury i Rozwoju z dnia 27 lutego 2015 r. (Dz.U. z 18 marca 2015 r. poz. 376). W przypadku, gdy operator ciepłowni/elektrociepłowni podaje informację o wskaźniku nieodnawialnej energii pierwotnej na ciepło - załączyć odpowiedni dokument.\n2.  Wskaźniki emisji należy przyjmować zgodnie z punktem 6.1.2 Załącznika nr 1 do rozporządzenia Ministra Infrastruktury i Rozwoju z dnia 27 lutego 2015 r. (Dz.U. z 18 marca 2015 r. poz. 376)\n3. Dla energii elektrycznej, zakłada się, że wykazywana w tej pozycji tabeli energia elektryczna, pochodzi z polskiej sieci elektroenergetycznej. Dla tej sieci, wskaźnik emisji należy przyjmować zgodnie z obowiązującymi na dzień sporządzani audytu danymi KOBIZE. Dla energii elektrycznej nie należy stosować współczynnika nakładu energii nieodnawialnej, gdyż zawiera on się w podanej prze KOBIZE wartości.\n4. Dla źródła ciepła opalanych w 100% biomasą wielkości dotyczące energii podawane są informacyjnie, wskaźnik emisji zgodnie z założeniami Wspólnotowego Systemu Handlu Uprawnieniami Do Emisji wynosi 0 (zero) Mg CO2/GJ"]
[null,null,null,"Zapotrzebowanie na energię końcową (GJ/rok lub MWh/rok)","Wielkość emisji MgCO2/rok","Zapotrzebowanie na energię końcową (GJ/rok lub MWh/rok)","Wielkość emisji MgCO2/rok","Redukcja emisji MgCO2/rok"]
[]
[1,2,3,4,5,6,7,8]
["Olej opałowy (podawać w GJ/rok)",null,null,null,{"$f":"ROUND(C6*D6/1000,2)","v":0},null,{"$f":"ROUND(C6*F6/1000,2)","v":0},{"$f":"E6-G6","v":0}]
["Gaz ziemny (podawać w GJ/rok)",null,null,null,{"$f":"ROUND(C7*D7/1000,2)","v":0},null,{"$f":"ROUND(C7*F7/1000,2)","v":0},{"$f":"E7-G7","v":0}]
["Gaz płynny (podawać w GJ/rok) ",null,null,null,0,null,0,{"$f":"E8-G8","v":0}]
["Węgiel kamienny (podawać w GJ/rok)",null,null,null,0,null,0,{"$f":"E9-G9","v":0}]
["Węgiel brunatny (podawać w GJ/rok)",null,null,null,0,null,0,{"$f":"E10-G10","v":0}]
["Biomasa 5) (podawać w GJ/rok)"]
["Inny (podać jaki) np. OZE",null,null,null,{"$f":"ROUND(C12*D12/1000,2)","v":0},null,{"$f":"ROUND(C12*F12/1000,2)","v":0},{"$f":"E12-G12","v":0}]
["Ciepło sieciowe z ciepłowni2) (podawać w GJ/rok)",null,null,null,{"$f":"ROUND(B13*C13*D13/1000,2)","v":0},null,{"$f":"ROUND(B13*C13*F13/1000,2)","v":0},{"$f":"E13-G13","v":0}]
["Ciepło sieciowe z ciepłowni wyłącznie na biomasę  5) (podawać w GJ/rok)"]
["Ciepło sieciowe z elektrociepłowni  2) (podawać w GJ/rok)",null,null,null,{"$f":"ROUND(B15*C15*D15/1000,2)","v":0},null,{"$f":"ROUND(B15*C15*F15/1000,2)","v":0},{"$f":"E15-G15","v":0}]
["Ciepło sieciowe z elektrociepłowni opartej wyłącznie na energii odnawialnej (biogaz, biomasa)5) (podawać w GJ/rok)"]
["Energia elektryczna z  sieci elektroenergetycznej zużyta na potrzeby budynku 1) 4) (podawać w MWh/rok)",null,null,null,{"$f":"ROUND(C17*D17/1000,2)","v":0},null,{"$f":"ROUND(C17*F17/1000,2)","v":0},{"$f":"E17-G17","v":0}]
["Energia elektryczna wyprodukowana na miejscu ze źródeł oze (biomasa, biogaz, w tym w skojarzeniu, PV), zużyta na potrzeby budynku 1)  (podawać w MWh/rok ze znakiem minus)",null,null,null,{"$f":"ROUND(C18*D18/1000,2)","v":0},null,{"$f":"ROUND(C18*F18/1000,2)","v":0},{"$f":"E18-G18","v":0}]
["SUMA",null,null,null,{"$f":"SUM(E6:E18)","v":0},null,{"$f":"SUM(G6:G18)","v":0},{"$f":"ROUND(E19-G19,2)","v":0}]
["PROCENT REDUKCJI EMISJI",null,null,null,null,null,null,{"$f":"ROUND(H19/E19,2)","v":{"$error":"#DIV/0!"}}]
[]
["1) Wartość energii elektrycznej uwzględnia ilość  energii elektrycznej na potrzeby danego budynku/ budynków: oświetlenie wbudowane, energia pomocnicza, energia elektryczna do napędu urządzeń chłodniczych dla klimatyzacji (oraz np. ogrzewanie, c.w.u.)"]
["2) W przypadku zużycia energii pochodzącej z zewnętrznego źródła ciepła (miejska sieć ciepłownicza itp. z wyłączeniem lokalnych kotłowni usytuowanych poza budynkiem/budynkami ogrzewanymi) należy  zastosować współczynniki nakładu nieodnawialnej energii pierwotnej zgodnie z tabelą nr 1 Załącznika nr 1 do rozporządzenia Ministra Infrastruktury i Rozwoju z dnia 27 lutego 2015 r. (Dz.U. z 18 marca 2015 r. poz. 376). W przypadku, gdy operator ciepłowni/elektrociepłowni podaje informację o wskaźniku nieodnawialnej energii pierwotnej na ciepło - załączyć odpowiedni dokument. "]
["3) Wskaźniki emisji należy przyjmować zgodnie z punktem 6.1.2  Załącznika nr 1 do rozporządzenia Ministra Infrastruktury i Rozwoju z dnia 27 lutego 2015 r. (Dz.U. z 18 marca 2015 r. poz. 376)"]
["4) Dla energii elektrycznej, zakłada się, że wykazywana w tej pozycji tabeli energia elektryczna, pochodzi z polskiej sieci elektroenergetycznej. Dla tej sieci, wskaźnik emisji należy przyjmować zgodnie z obowiązującymi na dzień sporządzani audytu danymi KOBIZE:. Dla energii elektrycznej nie należy stosować współczynnika nakładu energii nieodnawialnej, gdyż zawiera on się w podanej prze KOBIZE wartości. "]
["5)  Wyłącznie (w 100%) opalanego biomasą; wielkości dotyczące energii podawane są informacyjnie, wskaźnik emisji  zgodnie z założeniami Wspólnotowego Systemu Handlu Uprawnieniami Do Emisji wynosi 0 (zero) Mg CO2/GJ."]

{"sheet":"emisja PM10 - załącznik 9","index":5,"n_rows":41,"n_cols":7,"rows_kept":41,"cut":false,"hidden":false,"merged":[[18,0,19,6],[40,0,40,2],[20,0,20,2],[27,0,27,2],[34,0,34,2],[39,0,39,2],[2,5,3,5],[2,6,3,6],[16,0,16,6],[13,0,13,2],[14,0,14,5],[15,0,15,6],[1,0,3,0],[1,1,3,1],[1,2,1,3],[1,4,1,6],[2,3,3,3],[2,4,3,4],[2,2,3,2]]}
["Załącznik 9. Wyliczenie efektu ekologicznego (część II: redukcja emisji PM10)"]
["Nośnik energii","WSKAŹNIK EMISJI1)             gPM10/GJ ","Rok bazowy - stan przed modernizacją (przed realizacją projektu)",null,"Obliczeniowy stan po modernizacji (po realizacji projektu)"]
[null,null,"Zapotrzebowanie na energię końcową (GJ/rok )","Wielkość emisji kgPM10/rok","Zapotrzebowanie na energię końcową (GJ/rok)","Wielkość emisji kgPM10/rok","Redukcja emisji kgPM10/rok"]
[]
[1,3,4,5,6,7,8]
["Olej opałowy (podawać w GJ/rok)",null,null,{"$f":"ROUND(B6*C6/1000,2)","v":0},null,{"$f":"ROUND(B6*E6/1000,2)","v":0},{"$f":"D6-F6","v":0}]
["Gaz ziemny (podawać w GJ/rok)",null,null,{"$f":"ROUND(B7*C7/1000,2)","v":0},null,{"$f":"ROUND(B7*E7/1000,2)","v":0},{"$f":"D7-F7","v":0}]
["Gaz płynny (podawać w GJ/rok) ",null,null,0,null,0,{"$f":"D8-F8","v":0}]
["Węgiel kamienny (podawać w GJ/rok)",null,null,0,null,0,{"$f":"D9-F9","v":0}]
["Węgiel brunatny (podawać w GJ/rok)",null,null,0,null,0,{"$f":"D10-F10","v":0}]
["Biomasa  (podawać w GJ/rok)"]
["Inny (podać jaki) np. oze",null,null,{"$f":"ROUND(B12*C12/1000,2)","v":0},null,{"$f":"ROUND(B12*E12/1000,2)","v":0},{"$f":"D12-F12","v":0}]
["Ciepło sieciowe z ciepłowni (podawać w GJ/rok)",null,null,{"$f":"ROUND(B13*C13/1000,2)","v":0},null,{"$f":"ROUND(B13*E13/1000,2)","v":0},{"$f":"D13-F13","v":0}]
["SUMA",null,null,{"$f":"SUM(D6:D13)","v":0},null,{"$f":"SUM(F6:F13)","v":0},{"$f":"ROUND(D14-F14,2)","v":0}]
["PROCENT REDUKCJI EMISJI",null,null,null,null,null,{"$f":"ROUND(G14/D14,2)","v":{"$error":"#DIV/0!"}}]
[]
["1) Wartość emisji PM10 należy przyjmować zgodnie z tabelą zawartą w instrukcji"]
[]
["Wartość współczynnika emisji PM10 należy przyjmować zgodnie z tabelą dla kotłów indywidualnych oraz ciepłowni lokalnych do mocy 50 MW. Tabela nie dotyczy miejskich systemów ciepłowniczych, dla których nie oblicza się PM10. Wyjątek stanowi zamiana indywidualnego źródła grzewczego na sieć ciepłowniczą powyżej 50 MW. W tym przypadku należy korzystać z wytycznej podanej w pkt. 4."]
[]
["1. Wskaźniki emisji dla źródeł ciepła zasilanych z kotłów indywidualnych lub ciepłowni lokalnych o mocy cieplnej poniżej 50kW [gPM10/GJ]"]
["Paliwo stałe - Kotły starej generacji ",225,"g/GJ"]
["Paliwo stałe - Kotły automatyczne nowej generacji ",78,"g/GJ"]
["Kotły  na  gaz ziemny ",0.5,"g/GJ"]
["Kotły na olej opałowy",3,"g/GJ"]
["Biomasa - Kotły starej generacji ",480,"g/GJ"]
["Biomasa - Kotły automatyczne nowej generacji ",34,"g/GJ"]
["2. Wskaźniki emisji dla źródeł ciepła zasilanych z kotłów indywidualnych lub ciepłowni lokalnych o mocy cieplnej od 50kWdo 1MW [gPM10/GJ]"]
["Paliwo stałe - Kotły starej generacji ",190,"g/GJ"]
["Paliwo stałe - Kotły automatyczne nowej generacji ",78,"g/GJ"]
["Kotły  na  gaz ziemny ",0.5,"g/GJ"]
["Kotły na olej opałowy",3,"g/GJ"]
["Biomasa - Kotły starej generacji ",76,"g/GJ"]
["Biomasa - Kotły automatyczne nowej generacji ",34,"g/GJ"]
["3. Wskaźniki emisji dla źródeł ciepła zasilanych z kotłów indywidualnych lub ciepłowni lokalnych o mocy cieplnej od 1MW  do 50MW [gPM10/GJ]"]
["Paliwo stałe ",76,"g/GJ"]
["Gaz ziemny",0.5,"g/GJ"]
["Olej opałowy",3,"g/GJ"]
["Biomasa",76,"g/GJ"]
["4. Wskaźniki emisji dla źródeł ciepła zasilanych ciepłowni lub elektrociepłowni o mocy cieplnej powyżej 50MW [gPM10/GJ]"]
["W przypadku likwidacji indywidualnych źródeł grzewczych i podłączania obiektu do sieci ciepłowniczej zasilanej źródłem powyżej 50 MWt efekt  redukcji pyłu PM 10 należy określić jako 100 % dotychczasowej emisji.  "]

{"sheet":"audyt-Ex-post","index":6,"n_rows":142,"n_cols":7,"rows_kept":142,"cut":false,"hidden":false,"merged":[[18,3,18,5],[9,1,10,6],[14,1,14,5],[15,1,15,5],[16,3,16,5],[17,3,17,5],[30,3,30,5],[19,3,19,5],[20,3,20,5],[21,1,21,5],[22,3,22,5],[23,3,23,5],[24,3,24,5],[25,3,25,5],[26,3,26,5],[27,1,27,5],[28,3,28,5],[29,3,29,5],[59,1,59,6],[31,3,31,5],[32,3,32,5],[35,1,35,3],[36,1,36,6],[44,4,44,5],[45,1,46,1],[45,2,46,2],[47,4,47,5],[52,1,52,3],[53,1,53,6],[55,4,55,5],[57,4,57,5],[83,4,83,5],[61,4,61,5],[63,4,63,5],[65,1,65,6],[71,1,71,6],[73,4,73,5],[75,4,75,5],[79,1,79,3],[79,4,79,5],[80,1,80,6],[81,4,81,5],[82,4,82,5],[95,1,95,6],[84,4,84,5],[85,4,85,5],[86,1,86,6],[87,4,87,5],[88,4,88,5],[89,4,89,5],[90,4,90,5],[91,1,91,6],[92,4,92,5],[93,4,93,5],[94,4,94,5],[96,1,97,1],[96,4,96,5],[97,4,97,5],[98,1,99,1],[98,4,98,5],[99,4,99,5],[120,1,122,1],[121,4,121,5],[122,4,122,5],[100,1,102,1],[100,3,100,6],[101,4,101,5],[102,4,102,5],[103,4,103,5],[110,1,110,2],[111,1,113,1],[114,1,116,1],[115,4,115,5],[116,4,116,5],[117,1,119,1],[133,4,133,5],[136,1,136,3],[124,4,124,5],[125,4,125,5],[127,4,127,5],[129,4,129,5],[130,4,130,5],[132,4,132,5]]}
[]
[]
[]
[]
[]
[]
[]
[]
[]
[]
[]
[]
[]
[null,null,"KARTA AUDYTU ENERGETYCZNEGO EX-POST"]
[null,"Opis instalacji"]
[null,"1. Opis instalacji przed modernizacją"]
[null,"1.","Instalacja c.o. i źródło ciepła zasilające instalację c.o."]
[null,"2.","Instalacja przygotowania ciepłej wody i źródło ciepła zasilające instalację c.w.u."]
[null,"3.","Instalacja wentylacji"]
[null,"4.","Instalacja chłodzenia i źródła chłodu"]
[null,"5.","Instalacja oświetlenia wbudowanego"]
[null,"2. Opis instalacji - planowana modernizacja"]
[null,"1.","Instalacja c.o. i źródło ciepła zasilające instalację c.o."]
[null,"2.","Instalacja przygotowania ciepłej wody i źródło ciepła zasilające instalację c.w.u."]
[null,"3.","Instalacja wentylacji"]
[null,"4.","Instalacja chłodzenia i źródła chłodu"]
[null,"5.","Instalacja oświetlenia wbudowanego"]
[null,"3. Opis instalacji - wykonana modernizacja"]
[null,"1.","Instalacja c.o. i źródło ciepła zasilające instalację c.o."]
[null,"2.","Instalacja przygotowania ciepłej wody i źródło ciepła zasilające instalację c.w.u."]
[null,"3.","Instalacja wentylacji"]
[null,"4.","Instalacja chłodzenia i źródła chłodu"]
[null,"5.","Instalacja oświetlenia wbudowanego"]
[]
[]
[null,"Część I. Termomodernizacja i źródło ciepła",null,null,"Stan przed modernizacją","Stan planowany","Stan wykonany"]
[null,"Charakterystyka energetyczna i ekonomiczna związana z ogrzewaniem, wentylacją i przygotowaniem c.w.u."]
[null,"1.","Obliczeniowa moc cieplna systemu ogrzewania                                         ","kW"]
[null,"2.","Obliczeniowa moc cieplna na przygotowanie cwu Qśr lub Qmax                ","kW"]
[null,"3.","Roczne zapotrzebowanie na energię końcową do ogrzewania i wentylacji                    ","GJ/rok"]
[null,"4.","Roczne zapotrzebowanie na energię końcową do przygotowania c.w.u.                 ","GJ/rok"]
[null,"5.","Zmierzone zużycie ciepła na ogrzewanie przeliczone na warunki sezonu standardowego (służące do weryfikacji przyjętych składowych danych obliczeniowych bilansu ciepła)                                                                  ","GJ/rok"]
[null,"6.","Zmierzone zużycie ciepła na przygotowanie ciepłej wody (służące do weryfikacji przyjętych składowych danych obliczeniowych bilansu ciepła)    ","GJ/rok"]
[null,"7.","Roczne sumaryczne zapotrzebowanie na energię końcową do ogrzewania, wentylacji i przygotowania c.w.u. ","GJ/rok"]
[null,"8.","Procent oszczędności energii końcowej do ogrzewania, wentylacji i przygotowania c.w.u. ","%"]
[null,"9.","Roczne sumaryczne zapotrzebowanie na energię pierwotną do ogrzewania, wentylacji i przygotowania c.w.u. (bez urządzeń pomocniczych)","GJ/rok"]
[null,null,null,"MWh/rok"]
[null,"10.","Koszty inwestycyjne","zł"]
[null,"11.","Roczne koszty ogrzewania, wentylacji i przygotowania c.w.u","zł/rok"]
[]
[]
[]
[null,"Część II. Oszczędności w zużyciu energii elektrycznej",null,null,"Stan przed modernizacją","Stan planowany","Stan wykonany"]
[null,"1. Oświetlenie"]
[null,"1.","Roczne  zapotrzebowanie na energię końcową do oświetlenia   ","MWh/rok"]
[null,"2.","Procent oszczędności energii końcowej do oświetlenia","%"]
[null,"3.","Roczne  zapotrzebowanie na energię pierwotną do  oświetlenia   ","MWh/rok"]
[null,"4.","Koszty inwestycyjne","zł"]
[null,"5.","Roczne koszty oświetlania","zł/rok"]
[null,"2. Energia pomocnicza "]
[null,"1.","Roczne  zapotrzebowanie  na  energię końcową dla urządzeń pomocniczych","MWh/rok"]
[null,"2.","Procent oszczędności energii końcowej dla urządzeń pomocniczych","%"]
[null,"3.","Roczne  zapotrzebowanie na energię pierwotną dla urządzeń pomocniczych","MWh/rok"]
[null,"4.","Koszty inwestycyjne","zł"]
[null,"5.","Roczne koszty pracy urządzeń pomocniczych","zł/rok"]
[null,"3. Instalacja chłodzenia - Sprawności składowe systemu  chłodzenie"]
[null,"1.","Sprawność wytwarzania"," -"]
[null,"2.","Sprawność przesyłania "," -"]
[null,"3.","Sprawność regulacji i wykorzystania"," -"]
[null,"4.","Sprawność akumulacji"," -"]
[null,"5.","Ogólna sprawność systemu dystrybucji chłodu "," -"]
[null,"4. Charakterystyka energetyczna i ekonomiczna chłodu"]
[null,"1.","Roczne  zapotrzebowanie  na  energię końcową  do chłodzenia  ","MWh/rok"]
[null,"2.","Procent oszczędności energii końcowej do chłodzenia","%"]
[null,"3.","Roczne  zapotrzebowanie  na  energię pierwotną do chłodzenia  ","MWh/rok"]
[null,"4.","Koszty inwestycyjne","zł"]
[null,"5.","Roczne koszty chłodzenia pomieszczeń","zł/rok"]
[]
[]
[null," Część III. Zastosowanie odnawialnych źródeł energii i wysokosprawnej kogeneracji",null,null,"Stan planowany",null,"Stan wykonany"]
[null,"1. Instalacja PV"]
[null,"1.","Powierzchnia paneli ","m2"]
[null,"2.","Moc instalacji ","kWp"]
[null,"3.","Koszty inwestycyjne","zł"]
[null,"4.","Planowany uzysk z instalacji PV","MWh/rok"]
[null,"5.","Planowany uzysk z 1kWp instalacji PV","kWh/kWp"]
[null,"2.  Instalacja kolektorów słonecznych"]
[null,"1.","Powierzchnia czynna zamontowanej instalacji kolektorów","m2"]
[null,"2.","Koszty inwestycyjne","zł"]
[null,"3.","Planowany uzysk z instalacji kolektorów","GJ/rok"]
[null,"4.","Planowany uzysk z 1m2 powierzchni czynnej instalacji solarnej","GJ/(rok m2)"]
[null,"3. Pompa ciepła"]
[null,"1.","Rodzaj pompy ciepła"," -"]
[null,"2.","Sprawność wytwarzania"," -"]
[null,"3.","Uzysk OZE z pompy ciepła","GJ/rok"]
[null,"4. Kogeneracja i inne OZE"]
[null,"1.","Moc cieplna urządzenia","kW"]
[null,null,"Moc elektryczna urządzenia","kW"]
[null,"2.","Sprawność cieplna urządzenia"," -"]
[null,null,"Sprawność elektryczna urządzenia"," -"]
[null,"3.","Ilość wyprodukowanej energii z kogeneracji"]
[null,null," - ciepło","GJ/rok"]
[null,null," - energia elektryczna","MWh/rok"]
[null,"4.","Koszty inwestycyjne","zł"]
[]
[]
[]
[]
[]
[]
[null," Podsumowanie. Charakterystyka energetyczna optymalnego wariantu przedsięwzięcia",null,null,"Stan przed modernizacją","Stan planowany","Stan wykonany"]
[null,"1.","Roczne zapotrzebowanie na energię końcową budynku:"]
[null,null," - ciepło","GJ/rok"]
[null,null," - energia elektryczna","MWh/rok"]
[null,"2.","Roczne oszczędności energii końcowej dla budynku"]
[null,null," - ciepło","GJ/rok"]
[null,null," - energia elektryczna","MWh/rok"]
[null,"3.","Roczne  zapotrzebowanie na energię pierwotną budynku:"]
[null,null," - ciepło","GJ/rok"]
[null,null," - energia elektryczna","MWh/rok"]
[null,"4.","Roczne oszczędności energii pierwotnej dla budynku"]
[null,null," - ciepło","GJ/rok"]
[null,null," - energia elektryczna","MWh/rok"]
[null,"5.","Roczne łączne zapotrzebowanie  na  energię  końcową budynku","MWh/rok"]
[null,"6.","Zmniejszenie zapotrzebowania na energię końcową w budynku","MWh/rok"]
[null,"7.","Procent łącznej oszczędności energii końcowej budynku","%"]
[null,"8.","Roczne łączne zapotrzebowanie  na  energię  pierwotną budynku","MWh/rok"]
[null,"9.","Zmniejszenie zapotrzebowania na energię pierwotną w budynku","MWh/rok"]
[null,"10.","Emisja gazów cieplarnianych (dwutlenku węgla)","MgCO2/rok"]
[null,"11.","Szacowany roczny spadek emisji gazów cieplarnianych (dwutlenku węgla)","MgCO2/rok"]
[null,"12.","Procent redukcji emisji gazów cieplarnianych (dwutlenku węgla)","%"]
[null,"13.","Emisja pyłów PM10","kgPM10/rok"]
[null,"14.","Szacowany roczny spadek emisji pyłów PM10","kgPM10/rok"]
[null,"15.","Procent redukcji emisji pyłów PM10","%"]
[]
[]
[null,"Charakterystyka ekonomiczna optymalnego wariantu przedsięwzięcia",null,null,"Stan przed modernizacją","Stan planowany","Stan wykonany"]
[null,"1.","Sumaryczne roczne koszty eksploatacyjne ","zł/rok"]
[null,"2.","Oszczędność rocznych kosztów eksploatacyjnych","zł/rok"]
[null,"3.","Sumaryczne koszty inwestycyjne z Części I, II oraz III","zł"]
[null,"4.","Koszty audytu","zł"]
[null,"5.","Sumaryczne koszty inwestycyjne (z kosztem opracowania audytu energetycznego zbiorczego budynku wraz z załącznikami)","zł"]

{"sheet":"Weryfikacja (2)","index":7,"n_rows":45,"n_cols":10,"rows_kept":45,"cut":false,"hidden":true,"merged":[[12,0,12,1],[1,0,1,1],[1,2,1,6],[2,0,2,1],[2,2,2,6],[5,0,6,1],[42,1,42,2],[42,3,42,5],[44,1,44,2],[44,3,44,5],[18,0,18,1],[26,0,26,1],[33,0,33,1],[34,0,38,1],[40,1,40,3],[40,4,40,5]]}
[]
["Pożyczkobiorca:"]
["Wartość pożyczki:"]
[]
[]
["Obliczenia efektu energetycznego",null,"stan przed modernizacją","stan po modernizacji","różnica","Efekt energetyczny"]
[null,null,"GJ/rok lub\nMWh/rok","GJ/rok lub\nMWh/rok","GJ/rok lub\nMWh/rok","%"]
["1.","Roczne zapotrzebowanie na energię użytkową do ogrzewania i wentylacji",null,null,"-","-",null,null,835.3]
["2.","Roczne zapotrzebowanie na energię końcową do ogrzewania i wentylacji",null,null,0,"--",null,null,{"$f":"I8/0.65*1*1","v":1285.0769230769229},{"$f":"J8/0.65*1*1","v":0}]
["3.","Roczne zapotrzebowanie na energię końcową do przygotowania c.w.u.                 ",null,null,0,"--"]
["4.","Roczne sumaryczne zapotrzebowanie na energię końcową do ogrzewania, wentylacji i przygotowania c.w.u. ",{"$f":"SUM(C9:C10)","v":0},{"$f":"SUM(D9:D10)","v":0},{"$f":"C11-D11","v":0},{"$f":"((C11-D11)/C11)*100","v":{"$error":"#DIV/0!"}}]
[]
["1. Współczynniki przenikania ciepła przegród                                                          ",null,null,"Stan przed modernizacją","Stan po modernizacji","Zgodność z Rozp. WT 2017","Czy wybrano wariant optymalny"]
["1.","Ściany zew. (maksymalna wartość 0,23)","W/(m2K)",null,null,"tak","tak"]
["2.","Dach, stropodach (maksymalna wartość 0,18)","W/(m2K)",null,null,"tak","tak"]
["3.","Okna (maksymalna wartość 1,1 (1,3) lub 1,6)","W/(m2K)",null,null,"tak","tak"]
["4.","Drzwi (maksymalna wartość 1,5)","W/(m2K)",null,null,"tak","tak"]
["5.","Strop ostatniej kondygnacji","W/(m2K)",null,null,"tak","tak"]
["2. Sprawności składowych systemu ogrzewania"]
["1.","Sprawność wytwarzania"," -",null,null,"tak"]
["2.","Sprawność przesyłania "," -",null,null,"tak"]
["3.","Sprawność regulacji i wykorzystania"," -",null,null,"tak"]
["4.","Sprawność akumulacji"," -",null,null,"tak"]
["5.","Ogólna sprawność systemu grzewczego"," -"]
["6.","Uwzględnienie przerw na ogrzewanie w okresie tygodnia"," -",null,null,"tak"]
["7.","Uwzględnienie przerw na ogrzewanie w ciągu doby"," -",null,null,"tak"]
[" 3. Sprawności składowych systemu przygotowania ciepłej wody użytkowej"]
["1.","Sprawność wytwarzania                                                                           "," -",null,null,"tak"]
["2.","Sprawność przesyłu                                                                                    "," -",null,null,"tak"]
["3.","Sprawność wykorzystania                                                                                  "," -",null,null,"tak"]
["4.","Sprawność akumulacji                                                         "," -",null,null,"tak"]
["5.","Sprawność całkowita systemu przygotowania c.w.u.    "," -",null,null,"tak"]
[]
["4. Weryfikacja prostego czasu zwrotu",null,null,"nakłady","oszczędności","SPBT"]
["Ewentualne dodatkowe opinie / uwagi audytora energetycznego:",null,{"$f":"B14","v":"Ściany zew. (maksymalna wartość 0,23)"},null,null,{"$f":"D35/E35","v":{"$error":"#DIV/0!"}}]
[null,null,{"$f":"B15","v":"Dach, stropodach (maksymalna wartość 0,18)"},null,null,{"$f":"D36/E36","v":{"$error":"#DIV/0!"}}]
[null,null,"Okna (maksymalna wartość 1,1 (1,3) lub 1,6)",null,null,{"$error":"#DIV/0!"}]
[null,null,"Drzwi (maksymalna wartość 1,5)",null,null,{"$f":"D38/E38","v":{"$error":"#DIV/0!"}}]
[null,null,"Strop ostatniej kondygnacji",null,null,{"$f":"D39/E39","v":{"$error":"#DIV/0!"}}]
[]
[null,"Opinia audytora energetyczna",null,null,"Pozytywna"]
[]
[null,"Sporządził:",null,"Witold Kurczyński"]
[]
[null,"Data i podpis:"]

{"sheet":"Weryfikacja","index":8,"n_rows":38,"n_cols":21,"rows_kept":38,"cut":false,"hidden":true,"merged":[[23,2,24,2],[20,6,20,19],[11,1,12,1],[16,6,16,19],[17,6,17,19],[18,6,18,19],[19,6,19,19]]}
[]
[]
[null,null,"Wykaz przekazanych załączników","tak","nie","nie dotyczy"]
[null,"1.","Audyt energetyczny",{"$f":"JE","v":{"$error":"#NAME?"}}]
[null,"2.","Analiza oszczędności w zużyciu energii elektrycznej na cele oświetleniowe"]
[null,"3.","Analiza oszczędności w zużyciu energii elektrycznej dla urządzeń pomocniczych"]
[null,"4.","Analiza oszczędności w zużyciu energii elektrycznej dla instalacji chłodzenia"]
[null,"5.","Analiza zastosowania instalacji PV"]
[null,"6.","Analiza zastosowania instalacji kolektorów słonecznych"]
[null,"7.","Analiza zastosowania pompy ciepła"]
[null,"8.","Analiza zastosowania wysokosprawnej kogeneracji i innego OZE"]
[null,"9.","Wyliczenie efektu ekologicznego - częśc I redukcja emisji CO2"]
[null,null,"Wyliczenie efektu ekologicznego - częśc II redukcja emisji PM10"]
[]
[]
[null,null,"Lista kontolna wypełniania arkusza  Audyt energetyczny zbiorczy ","tak","nie","nie dotyczy"]
[null,"1.","Wypełnienie arkusza Audyt energetyczny zbiorczy budynku - Dane ogólne",null,null,null,"Dane ogólne:\n1. Audyt energetyczny zbiorczy budynku wypełnia się w oparciu o sporządzony audyt energetyczny budynku bądź źródła ciepła oraz (jeśli dotyczy) analizy oszczędności energii elektrycznej w budynku i/lub analizy zastosowania odnawialnych źródeł energii;\n2. W części Dane ogólne dla budynków wielorodzinnych należy podać wskaźnik „Liczba gospodarstw domowych z lepszą klasą zużycia energii\" rozumianą jako liczbę lokali mieszkalnych w budynku. W przypadku termomodernizacji budynków innych niż mieszkalne wskaźnik ten wynosi „0\";\n3. W części Opis instalacji przed modernizacją należy podać krótki opis charakteryzujący stan istniejący systemów c.o., c.w.u., wentylacji, chłodzenia oraz oświetlenia, mający bezpośrednie przełożenie na przyjęte sprawności poszczególnych składowych systemów;\n4. W części Opis instalacji po modernizacji należy podać krótki opis charakteryzujący stan docelowy systemów c.o., c.w.u., wentylacji, chłodzenia oraz oświetlenia, mający bezpośrednie przełożenie na przyjęte sprawności poszczególnych składowych systemów;\n"]
[null,"2.","Wypełnienie arkusza Audyt energetyczny zbiorczy budynku - Część I. Termonodernizacja i źródło ciepła",null,null,null,"Część I - termomodernizacja budynku lub źródła ciepła\"\n1. Realizacja projektu związanego z modernizacją źródła ciepła w tym z zastosowaniem kogeneracji może być rozpatrywana jedynie jako element projektu kompleksowej modernizacji obiektu;\n2. Przegrody poddane termomodernizacji muszą spełniać na dzień uzyskania pozwolenia na budowę/zgłoszenia minimalne wymagania dotyczące izolacyjności cieplnej określone w rozporządzeniu w sprawie warunków technicznych jakim powinny odpowiadać budynki i ich usytuowanie (Dz. U. 2015 poz. 1422) odpowiednio warunki techniczne na rok 2017 (WT 2017) bądź na rok 2021 (WT 2021) lub na 1 stycznia 2019 r. - w przypadku budynków zajmowanych przez władze publiczne oraz będących ich własnością;\n3. W części Współczynniki przenikania ciepła przegród należy wymienić wszystkie przegrody budowlane biorące udział w stratach ciepła, w tym stolarkę okienną i drzwiową oraz podać współczynniki przenikania ciepła dla stanu przed i po modernizacji;\n4. W części Sprawności składowych systemów ogrzewania, ciepłej wody użytkowej wartości należy podać w oparciu o rozporządzenie w sprawie metodologii wyznaczania charakterystyki energetycznej budynku lub części budynku oraz świadectw charakterystyki energetycznej (obecnie Dz. U. 2015 poz. 376);\n5. Dane dotyczące Charakterystyki energetycznej budynku należy wypełnić w oparciu o audyt energetyczny budynku stanowiący załącznik 1. Audyt energetyczny budynku musi zawierać elementy zgodne z wytycznymi rozporządzenia w sprawie szczegółowego zakresu i form audytu energetycznego oraz części audytu remontowego, wzorów kart audytów, a także algorytmu oceny opłacalności przedsięwzięcia termomodernizacyjnego (obecnie Dz.U. 2015 poz. 1606) w tym wydruki z raportu/wyniki z obliczeń cieplnych budynku dla stanu istniejącego i po modernizacji;\n6. Należy podać zmierzone zużycie ciepła na ogrzewanie i przygotowanie ciepłej wody użytkowej przeliczone na standardowy sezon grzewczy. W przypadku braku danych należy zamieścić stosowne wyjaśnienie. Szczegółowych wyjaśnień wymaga również sytuacja, w której zmierzone zużycie ciepła na c.o. i c.w.u. różni się od obliczeniowego o powyżej 20%.\n7. W przypadku, gdy w projekcie przewidziano instalację indywidualnych piecy należy wykazać, że:\na. przyłączenie do sieci ciepłowniczej jest nieuzasadnione ekonomicznie (lub nie istnieje technicznie taka możliwość);\nb. zostanie osiągnięty znacznie większy efekt energetyczny;\nc. nastąpiło zmniejszenie emisji CO2 o min. 30% w odniesieniu do istniejących instalacji w przypadku zmiany spalanego paliwa;\nd. zaplanowane do montażu urządzenia do ogrzewania charakteryzują się obowiązującym do końca 2020 r. minimalnym poziomem efektywności energetycznej i normami emisji (zgodnie z dyrektywą 2009/125/WE z dnia 21 października 2009 r. ustanawiającej ogólne zasady ustalania wymogów dotyczących ekoprojektu dla produktów związanych z energią).\n"]
[null,"3.","Wypełnienie arkusza Audyt energetyczny zbiorczy budynku - Część II. Oszczędności w zużyciu energii elektrycznej.",null,null,null,"Część II - oszczędności w zużyciu energii elektrycznej\"\n1. W zakresie modernizacji oświetlenia (jeśli dotyczy) dane należy podać w oparciu o analizę oszczędności energii elektrycznej na cele oświetleniowe stanowiącą załącznik 2. Załącznik powinien stanowić wydruk z raportu z przeprowadzonych obliczeń, zawierający co najmniej następujące dane opisujące stan istniejący oraz po modernizacji: ilość punktów świetlnych, moce zainstalowane, czas pracy, zużycie energii końcowej, procent oszczędności energii końcowej, zapotrzebowanie na energię pierwotną, koszty eksploatacyjne, planowane koszty inwestycyjne;\n2. W zakresie modernizacji urządzeń pomocniczych do systemów c.o., c.w.u, wentylacji, chłodzenia (jeśli dotyczy) dane należy podać w oparciu o analizę oszczędności energii elektrycznej na poszczególne cele stanowiącą załącznik 3. Załącznik powinien stanowić wydruk z raportu z przeprowadzonych obliczeń, zawierający co najmniej następujące dane opisujące stan istniejący oraz po modernizacji: ilość urządzeń, moce zainstalowane, czas pracy, zużycie energii końcowej, procent oszczędności energii końcowej, zapotrzebowanie na energię pierwotną, koszty eksploatacyjne, planowane koszty inwestycyjne;\n3. W zakresie modernizacji systemu chłodzenia (jeśli dotyczy) dane należy podać w oparciu o analizę oszczędności energii na potrzeby chłodu stanowiącą załącznik 4. Załącznik powinien stanowić wydruk z raportu z przeprowadzonych obliczeń, zawierający co najmniej następujące dane opisujące stan istniejący oraz po modernizacji: opis instalacji bądź lokalnych układów klimatyzatorów warunkujących przyjęcie poszczególnych sprawności systemu, zużycie energii końcowej, procent oszczędności energii końcowej, zapotrzebowanie na energię pierwotną, koszty eksploatacyjne, planowane koszty inwestycyjne, ESEER źródła chłodu, działania ograniczające zyski ciepła;\n"]
[null,"4.","Wypełnienie arkusza Audyt energetyczny zbiorczy budynku - Część III. Zastosowanie odnawialnych źródeł energii i wysokosprawnej kogeneracji.",null,null,null,"Część III - zastosowanie odnawialnych źródeł energii i wysokosprawnej kogeneracji\nW zakresie montażu instalacji PV (jeśli dotyczy) audyt zbiorczy budynku należy wypełnić w oparciu o analizę stanowiącą załącznik 5 lub załącznik 2 jeśli działanie zostało ujęte przy modernizacji oświetlenia. Załącznik powinien stanowić wydruk z raportu z przeprowadzonych obliczeń, zawierający co najmniej następujące dane: powierzchnię całkowitą PV, moc szczytową, opis urządzeń do magazynowania energii (jeśli dotyczy), przewidywaną roczną produkcję energii elektrycznej [MWh/rok], uzysk przypadający na lkWp zainstalowanej instalacji [kWh/kWp], procent oszczędności energii końcowej, planowane koszty inwestycyjne;\n3. W zakresie montażu instalacji kolektorów słonecznych (jeśli dotyczy) audyt zbiorczy budynku należy wypełnić w oparciu o analizę stanowiącą załącznik 6 lub załącznik 1 jeśli działanie zostało ujęte przy modernizacji ciepłej wody użytkowej. Załącznik powinien stanowić wydruk z raportu z przeprowadzonych obliczeń, zawierający co najmniej następujące dane: liczbę zamontowanych kolektorów, powierzchnię czynną zamontowanej instalacji, przewidywaną roczną produkcję ciepła [GJ/rok], uzysk przypadający na 1 m2 zainstalowanej instalacji [GJ/m2rok], procent oszczędności energii planowane koszty inwestycyjne;\n4. W zakresie montażu pomp ciepła (jeśli dotyczy) audyt zbiorczy budynku należy wypełnić w oparciu o analizę stanowiącą załącznik 7 lub załącznik 1 jeśli działanie zostało ujęte przy modernizacji źródła ciepła. Załącznik powinien przedstawiać obliczenia oraz co najmniej następujące dane: rodzaj pomy ciepła, sezonowy wskaźnik efektywności (wydajności) energetycznej (SPF/SPER) planowanej pompy ciepła, przewidywaną roczną produkcję ciepła [MWh/rok] (zgodnie z załączonymi do audytu energetycznego obliczeniami);\n5. W zakresie montażu instalacji urządzeń i instalacji wysokosprawnej kogeneracji lub innego OZE (jeśli dotyczy) audyt zbiorczy budynku należy wypełnić w oparciu o analizę stanowiącą załącznik 8 lub załącznik 1 jeśli działanie zostało ujęte przy modernizacji źródła ciepła. Załącznik powinien przedstawiać obliczenia oraz co najmniej następujące dane: sprawność ogólną, sprawność wytwarzania energii elektrycznej i ciepła, zainstalowaną moc elektryczną i cieplną, rodzaj paliwa; należy podać przewidywaną roczną produkcję energii elektrycznej [MWh/rok] i ciepła [GJ/rok], procent oszczędności energii końcowej, planowane koszty inwestycyjne.\n6. W przypadku, gdy w projekcie przewidziano instalację mikrokogeneracji spalających biomasę lub paliwa gazowe, należy wykazać że:\na. przyłączenie do sieci ciepłowniczej jest nieuzasadnione ekonomicznie (lub nie istnieje technicznie taka możliwość);\nb. zostanie osiągnięty znacznie większy efekt energetyczny;\nc. nastąpiło zmniejszenie emisji C02 o min. 30% w odniesieniu do istniejących instalacji w przypadku zmiany spalanego paliwa;\nd. zaplanowane do montażu urządzenia do ogrzewania charakteryzują się obowiązującym do końca 2020 r. minimalnym poziomem efektywności energetycznej i normami emisji (zgodnie z dyrektywą 2009/125/WE z dnia 21 października 2009r. ustanawiającej ogólne zasady ustalania wymogów dotyczących ekoprojektu dla produktów związanych z energią).\n7. W zakresie wysokosprawnej kogeneracji wsparte mogą zostać projekty zapewniające najniższy poziom emisji C02 oraz innych zanieczyszczeń powietrza (w szczególności PM10). Realizacja projektu związanego z modernizacją źródła ciepła i zastosowaniem kogeneracji może być realizowana jedynie jako element projektu kompleksowej modernizacji obiektu\n8. W przypadku nowych instalacji powinno zostać osiągnięte co najmniej 10% uzysku efektywności energetycznej w porównaniu do rozdzielonej produkcji energii cieplnej i elektrycznej przy zastosowaniu najlepszych dostępnych technologii.\n9. W przypadku realizacji projektów dot. wysokosprawnej kogeneracji dopuszczalna moc instalacji do 1 MWe.\n"]
[null,"5.","Wypełnienie arkusza Audyt energetyczny zbiorczy budynku - Podsumowanie",null,null,null,"Łączna charakterystyka wskaźników przedsięwzięcia dla Części I, Części II oraz Części III przedsięwzięcia.\nEmisję CO2 należy obliczyć na podstawie wartości wskaźników emisji CO2 publikowanych przez Krajowy Ośrodek Bilansowania i Zarządzania Emisjami do raportowania w ramach Wspólnotowego Systemu Handlu Uprawnieniami do Emisji za dany rok, wyliczoną w załączniku 9.\n\n„Opis optymalnego wariantu przedsięwzięcia\"\nOpisu optymalnego wariantu przedsięwzięcia musi zawierać parametry techniczne, wymagane dla poszczególnych elementów przedsięwzięcia, jak również inne wymagania, wynikające ze specyfiki urządzeń. \n• W zakresie ocieplenia przegród budynku należy podać:\n- rodzaj ocieplanej przegrody (ściany, stropy, fundamenty, stropodachy, lub dachy), powierzchnię ocieplaną [m2], grubość materiału izolacyjnego, współczynnik przewodzenia ciepła A [W/m K] materiału izolacyjnego;\n• W zakresie modernizacji lub wymiany stolarki okiennej i drzwiowej lub wymiany oszkleń\nsystemowych w budynkach na efektywne energetycznie należy podać:\n- powierzchnię [m2], oddzielnie dla okien, drzwi, oszkleń systemowych;\n• W zakresie modernizacji instalacji ogrzewania należy podać:\n- zakres prac, podać w sztukach planowane do wymiany grzejniki i zawory termostatyczne, itp. Zakres zadania powinien uwzględniać proces równoważenia hydraulicznego (regulacji). W przypadku wymiany źródła ciepła należy podać moc i rodzaj nowego źródła (rodzaj paliwa);\n• W zakresie modernizacji instalacji przygotowania ciepłej wody użytkowej należy podać:\n- zakres prac w tym ilość zasobników, itp.;\n• W zakresie modernizacji systemu wentylacji:\n- poprawa systemu wentylacji mechanicznej - należy opisać zakres modernizacji, w przypadku zastosowania systemu odzysku/rekuperacji ciepła - dodatkowo sprawność rekuperatora,\n- zastąpienie systemu wentylacji naturalnej systemem wentylacji mechanicznej należy opisać zakres modernizacji;\n• W zakresie montażu kompleksowych systemów zarządzania wszystkimi rodzajami energii\nw budynku/-ach:\n- należy podać opis funkcji realizowanych w ramach systemu;\n• W zakresie wymiany oświetlenia wbudowanego na energooszczędne:\n- wymiana źródeł światła na energooszczędne (np. typu LED) - należy podać liczbę punktów świetlnych, moc [kW];\n• W zakresie wymiany urządzeń pomocniczych na energooszczędne (w tym wymiana\nukładów pompowych i pomp - stosowanie pomp o płynnej regulacji):\n- należy podać liczbę oraz rodzaj urządzenia pomocniczego i instalacji;\n• W zakresie modernizacji instalacji chłodzenia/klimatyzacji:\n- należy opisać zakres modernizacji, działania ograniczające zyski ciepła, współczynnik ESEER źródła ciepła;\n• W zakresie montażu układów (ogniw) fotowoltaicznych:\n- należy podać moc zainstalowaną, powierzchnię całkowitą;\n• W zakresie montażu kolektorów słonecznych:\n- powierzchnia czynna zamontowanych kolektorów;\n• W zakresie montażu urządzeń i instalacji do wysokosprawnej produkcji energii elektrycznej, ciepła (wysokosprawna kogeneracja) lub innego OZE:\n- zainstalowaną moc elektryczną i cieplną, rodzaj paliwa;\n"]
[]
[]
[null,null,"Obliczenia efektu energetycznego","stan przed modernizacją","stan po modernizacji","różnica",null,null,null,null,null,null,null,null,null,null,null,null,null,null,"Efekt energetyczny"]
[null,null,null,"GJ/rok lub\nMWh/rok","GJ/rok lub\nMWh/rok","GJ/rok lub\nMWh/rok",null,null,null,null,null,null,null,null,null,null,null,null,null,null,"%"]
[null,1,"Roczne zapotrzebowanie na energię końcową do ogrzewania i wentylacji",{"$f":"'audyt Ex-ante'!D64","v":0},{"$f":"'audyt Ex-ante'!E64","v":0},{"$f":"D26-E26","v":0},null,null,null,null,null,null,null,null,null,null,null,null,null,null,"--"]
[null,2,"Roczne zapotrzebowanie na energię końcową do przygotowania c.w.u.                 ",{"$f":"'audyt Ex-ante'!D65","v":0},{"$f":"'audyt Ex-ante'!E65","v":0},{"$f":"D27-E27","v":0},null,null,null,null,null,null,null,null,null,null,null,null,null,null,"--"]
[null,3,"Roczne sumaryczne zapotrzebowanie na energię końcową do ogrzewania, wentylacji i przygotowania c.w.u. ",{"$f":"'audyt Ex-ante'!D76","v":0},{"$f":"'audyt Ex-ante'!E76","v":0},{"$f":"D28-E28","v":0},null,null,null,null,null,null,null,null,null,null,null,null,null,null,{"$f":"((D28-E28)/D28)*100","v":{"$error":"#DIV/0!"}}]
[null,4,{"$f":"'audyt Ex-ante'!B76","v":"Roczne  zapotrzebowanie na energię końcową do oświetlenia   "},{"$f":"D27+D28","v":0},0,{"$f":"D29-E29","v":0}]
[null,5,{"$f":"'audyt Ex-ante'!B82","v":"Roczne  zapotrzebowanie  na  energię końcową dla urządzeń pomocniczych"},{"$f":"D28+D29","v":0},0,0]
[null,6,{"$f":"'audyt Ex-ante'!B94","v":"Roczne  zapotrzebowanie  na  energię końcową  do chłodzenia  "},{"$f":"D29+D30","v":0},0,0]
[null,7,"Roczne sumaryczne zapotrzebowanie na energię elektryczną końcową ",{"$f":"SUM(D29:D31)","v":0},{"$f":"SUM(E29:E31)","v":0},{"$f":"D32-E32","v":0},null,null,null,null,null,null,null,null,null,null,null,null,null,null,{"$f":"((D32-E32)/D32)*100","v":{"$error":"#DIV/0!"}}]
[null,8,{"$f":"'audyt Ex-ante'!B140","v":"Procent łącznej oszczędności energii końcowej budynku"}]
[]
[null,null,"Charakterystyka ekonomiczna optymalnego wariantu przedsięwzięcia"]
[null,1,{"$f":"'audyt Ex-ante'!B154","v":"Sumaryczne koszty inwestycyjne (z kosztem opracowania audytu energetycznego zbiorczego budynku wraz z załącznikami)"},"zł"]
[null,2,{"$f":"'audyt Ex-ante'!B151","v":"Oszczędność rocznych kosztów eksploatacyjnych"},"zł/rok"]
[null,3,{"$f":"'audyt Ex-ante'!B155","v":"SPBT"},"lata"]

{"sheet":"Protokół-opinia pozytywna","index":9,"n_rows":88,"n_cols":20,"rows_kept":88,"cut":false,"hidden":true,"merged":[[84,2,86,22],[87,2,89,22],[73,17,73,21],[59,3,59,21],[62,3,62,21],[53,3,55,14],[53,15,55,15],[53,16,55,16],[53,17,55,17],[53,18,55,19],[46,16,48,16],[46,17,48,17],[46,18,48,19],[51,3,52,14],[51,18,51,19],[52,18,52,19],[37,3,38,14],[18,25,19,27],[74,17,74,21],[33,3,33,21],[35,3,35,21],[30,2,30,21],[26,2,26,22],[44,18,44,19],[45,18,45,19],[39,3,41,14],[39,15,41,15],[39,16,41,16],[39,17,41,17],[44,3,45,14],[46,3,48,14],[46,15,48,15],[2,19,3,22],[18,2,21,22],[10,17,10,21],[11,17,11,21],[12,17,12,21]]}
[]
[]
[null,null,null,null,null,null,null,null,null,null,null,null,null,null,null,null,null,null,null,"Łódź, dnia 08.10.2018r."]
[]
[]
[]
[]
[]
[]
[]
[null,null,null,null,null,null,null,null,null,null,null,null,null,null,null,null,null,"Wspólnota Mieszkaniowa "]
[null,null,null,null,null,null,null,null,null,null,null,null,null,null,null,null,null,"ul. "]
[null,null,null,null,null,null,null,null,null,null,null,null,null,null,null,null,null,"Łódź"]
[]
[]
[]
[]
[]
[null,null,"OPINIA"]
[]
[]
[]
[]
[]
[]
[]
[null,null,{"$f":"CONCATENATE(\"Dotyczy: weryfikacji audytu energetycznego budynku wielorodzinnego mieszkalnego przy \",R12,\",\",\"  \",R13,\"  złożonego do ŁARR\")","v":"Dotyczy: weryfikacji audytu energetycznego budynku wielorodzinnego mieszkalnego przy ul. ,  Łódź  złożonego do ŁARR"}]
[]
[]
[]
[null,null,"W wyniku wstępnego postępowania weryfikacyjnego stwierdzono, że:"]
[]
[]
[null,null,"1.","Audyt energetyczny wykonano poprawnie"]
[]
[null,null,"2.","Wartości energii i emisji  CO2 i PM10 wynikające z audytu"]
[]
[null,null,null,null,null,null,null,null,null,null,null,null,null,null,null,"stan przed modernizacją","stan po modernizacji","efekt energetyczny"]
[null,null,null,null,null,null,null,null,null,null,null,null,null,null,null,"GJ/rok lub\nMWh/rok","GJ/rok lub\nMWh/rok","%"]
[null,null,null,"Roczne sumaryczne zapotrzebowanie na energię końcową do ogrzewania, wentylacji i przygotowania c.w.u. ",null,null,null,null,null,null,null,null,null,null,null,{"$f":"'audyt Ex-ante'!D68","v":0},{"$f":"'audyt Ex-ante'!E68","v":0},{"$f":"'audyt Ex-ante'!D69","v":0}]
[]
[]
[]
[]
[null,null,null,null,null,null,null,null,null,null,null,null,null,null,null,"stan przed modernizacją","stan po modernizacji","spadek emisji","spadek emisji"]
[null,null,null,null,null,null,null,null,null,null,null,null,null,null,null,"Wielkość emisji MgCO2/rok","Wielkość emisji MgCO2/rok","Redukcja emisji MgCO2/rok","%"]
[null,null,null,"Emisja CO2",null,null,null,null,null,null,null,null,null,null,null,{"$f":"'emisja CO2 - załącznik 9'!E19","v":0},{"$f":"'emisja CO2 - załącznik 9'!G19","v":0},{"$f":"'emisja CO2 - załącznik 9'!H19","v":0},{"$f":"'emisja CO2 - załącznik 9'!H20","v":{"$error":"#DIV/0!"}}]
[]
[]
[]
[]
[null,null,null,null,null,null,null,null,null,null,null,null,null,null,null,"stan przed modernizacją","stan po modernizacji","spadek emisji","spadek emisji"]
[null,null,null,null,null,null,null,null,null,null,null,null,null,null,null,"Wielkość emisji kgPM10/rok","Wielkość emisji kgPM10/rok","Redukcja emisji kgPM10/rok","%"]
[null,null,null,"Emisja PM10",null,null,null,null,null,null,null,null,null,null,null,{"$f":"'emisja PM10 - załącznik 9'!D14","v":0},{"$f":"'emisja PM10 - załącznik 9'!F14","v":0},{"$f":"'emisja PM10 - załącznik 9'!G14","v":0},{"$f":"'emisja PM10 - załącznik 9'!G15","v":{"$error":"#DIV/0!"}}]
[]
[]
[]
[]
[]
[null,null,"3.",{"$f":"CONCATENATE(\"Z audytu wynika, że w wyniku realizacji Projektu nastąpi zwiększenie efektywności energetycznej powyżej 25% - planowany efekt wyniesie \", R40*100,\"%\")","v":"Z audytu wynika, że w wyniku realizacji Projektu nastąpi zwiększenie efektywności energetycznej powyżej 25% - planowany efekt wyniesie 0%"}]
[]
[]
[null,null,"4.",{"$f":"CONCATENATE(\"Z audytu wynika, że szacowany roczny spadek emisji gazów cieplarnianych wyniesie \",R47,\" MgC02/rok \",\"(\",S47*100,\"%)\",\" oraz \",R54,\" kgPM10 \",\"(\",S54*100,\"%)\")","v":{"$error":"#DIV/0!"}}]
[]
[]
[]
[]
[]
[]
[]
[]
[]
[]
[null,null,null,null,null,null,null,null,null,null,null,null,null,null,null,null,null,"……………………………………………………………………"]
[null,null,null,null,null,null,null,null,null,null,null,null,null,null,null,null,null,"(pieczęć i podpis osób upoważnionych w imieniu Weryfikatora)"]
[]
[]
[]
[]
[]
[]
[]
[]
[]
[null,null,"Do wsparcia nie kwalifikują się projekty zwiększające efektywność energetyczną (rozumianą jako oszczędność energii końcowej) poniżej 25%, a w przypadku Inwestycji w kotły spalające biomasę lub ewentualnie paliwa gazowe poniżej 30 %."]
[]
[]
[null,null,"Wspierane mogą być inwestycje w instalacje o jak najmniejszej emisji CO2/rok, PM 10, oraz innych zanieczyszczeń powietrza, a wsparte projekty muszą skutkować znaczną redukcją CO2/rok w odniesieniu do istniejących instalacji (o co najmniej 30% w przypadku zmiany spalanego paliwa)"]

{"sheet":"Protokół-uwagi","index":10,"n_rows":102,"n_cols":20,"rows_kept":102,"cut":false,"hidden":true,"merged":[[100,17,100,21],[70,3,70,22],[71,3,71,22],[72,3,72,22],[73,3,73,22],[74,3,74,22],[75,3,75,22],[76,3,76,22],[77,3,77,22],[78,3,78,22],[79,3,79,22],[80,3,80,22],[81,3,81,22],[82,3,82,22],[86,2,88,22],[64,3,65,14],[64,18,64,19],[65,18,65,19],[66,3,68,14],[66,15,68,15],[66,16,68,16],[66,17,68,17],[66,18,68,19],[57,3,58,14],[57,18,57,19],[58,18,58,19],[59,3,61,14],[59,15,61,15],[59,16,61,16],[59,17,61,17],[59,18,61,19],[34,2,34,22],[43,2,43,21],[46,3,46,21],[50,3,51,14],[52,3,54,14],[52,15,54,15],[52,16,54,16],[52,17,54,17],[26,25,27,27],[2,19,3,23],[14,17,14,23],[15,17,15,21],[16,17,16,21],[26,2,29,22]]}
[]
[]
[null,null,null,null,null,null,null,null,null,null,null,null,null,null,null,null,null,null,null,"Łódź, dnia 08.10.2018r."]
[]
[]
[]
[]
[]
[]
[]
[]
[]
[]
[]
[null,null,null,null,null,null,null,null,null,null,null,null,null,null,null,null,null,"Wspólnota Mieszkaniowa "]
[null,null,null,null,null,null,null,null,null,null,null,null,null,null,null,null,null,"ul. "]
[null,null,null,null,null,null,null,null,null,null,null,null,null,null,null,null,null,"Łódź"]
[]
[]
[]
[]
[]
[]
[]
[]
[]
[null,null,"OPINIA"]
[]
[]
[]
[]
[]
[]
[]
[null,null,{"$f":"CONCATENATE(\"Dotyczy: weryfikacji audytu energetycznego budynku wielorodzinnego mieszkalnego przy \",R16,\",\",\"  \",R17,\"  złożonego do ŁARR\")","v":"Dotyczy: weryfikacji audytu energetycznego budynku wielorodzinnego mieszkalnego przy ul. ,  Łódź  złożonego do ŁARR"}]
[]
[]
[]
[]
[]
[]
[]
[]
[null,null,"W wyniku wstępnego postępowania weryfikacyjnego stwierdzono, że:"]
[]
[]
[null,null,null,"Audyty energetyczny zawiera natępujące nieścisłosci:"]
[]
[null,null,"2.","Wartości energii wynikające z audytu"]
[]
[null,null,null,null,null,null,null,null,null,null,null,null,null,null,null,"stan przed modernizacją","stan po modernizacji","efekt energetyczny"]
[null,null,null,null,null,null,null,null,null,null,null,null,null,null,null,"GJ/rok lub\nMWh/rok","GJ/rok lub\nMWh/rok","%"]
[null,null,null,"Roczne sumaryczne zapotrzebowanie na energię końcową do ogrzewania, wentylacji i przygotowania c.w.u. ",null,null,null,null,null,null,null,null,null,null,null,{"$f":"'audyt Ex-ante'!D68","v":0},{"$f":"'audyt Ex-ante'!E68","v":0},{"$f":"'audyt Ex-ante'!D69","v":0}]
[]
[]
[]
[]
[null,null,null,null,null,null,null,null,null,null,null,null,null,null,null,"stan przed modernizacją","stan po modernizacji","spadek emisji","spadek emisji"]
[null,null,null,null,null,null,null,null,null,null,null,null,null,null,null,"Wielkość emisji MgCO2/rok","Wielkość emisji MgCO2/rok","Redukcja emisji MgCO2/rok","%"]
[null,null,null,"Emisja CO2",null,null,null,null,null,null,null,null,null,null,null,{"$f":"'emisja CO2 - załącznik 9'!E19","v":0},{"$f":"'emisja CO2 - załącznik 9'!G19","v":0},{"$f":"'emisja CO2 - załącznik 9'!H19","v":0},{"$f":"'emisja CO2 - załącznik 9'!H20","v":{"$error":"#DIV/0!"}}]
[]
[]
[]
[]
[null,null,null,null,null,null,null,null,null,null,null,null,null,null,null,"stan przed modernizacją","stan po modernizacji","spadek emisji","spadek emisji"]
[null,null,null,null,null,null,null,null,null,null,null,null,null,null,null,"Wielkość emisji kgPM10/rok","Wielkość emisji kgPM10/rok","Redukcja emisji kgPM10/rok","%"]
[null,null,null,"Emisja PM10",null,null,null,null,null,null,null,null,null,null,null,{"$f":"'emisja PM10 - załącznik 9'!D14","v":0},{"$f":"'emisja PM10 - załącznik 9'!F14","v":0},{"$f":"'emisja PM10 - załącznik 9'!G14","v":0},{"$f":"'emisja PM10 - załącznik 9'!G15","v":{"$error":"#DIV/0!"}}]
[]
[]
[]
[null,null,1]
[null,null,2]
[null,null,3]
[null,null,4]
[null,null,5]
[null,null,6]
[null,null,7]
[null,null,8]
[null,null,9]
[null,null,10]
[null,null,11]
[null,null,12]
[null,null,13]
[]
[]
[]
[null,null,"W związku z powyższym prosimy o złożenie wyjaśnień w nieprzekraczalnym terminie 10 dni roboczych od dnia otrzymania niniejszego zawiadomienia."]
[]
[]
[]
[]
[]
[]
[]
[]
[]
[]
[]
[]
[]
[null,null,null,null,null,null,null,null,null,null,null,null,null,null,null,null,null,"……………………………………………………………………"]
[null,null,null,null,null,null,null,null,null,null,null,null,null,null,null,null,null,"(pieczęć i podpis osób upoważnionych w imieniu Weryfikatora)"]